Workbook

Sheet Portada

Sheet Indíce
B2: Indíce
B4: 1 | D4: Balance de Comprobación
B5: 2 | D5: Estado de Cambios en los Activos Netos Disponibles
B6: 3 | D6: Estado de Activos Netos Disponibles para Beneficios
B7: 4 | D7: Flujo de Efectivo
B8: 5 | D8: Estado de Cambios en el patrominio
B9: Nota 1 | D9: Ingresos Financieros por efectivo y equivalentes de efectivo
B10: Nota 2 | D10: Ingresos Financieros por inversiones en instrumentos financieros
B11: Nota 3 | D11: Ganancias por Diferencial Cambiario y unidades de desarrollo
B12: Nota 4 | D12: Ingresos Operativos
B13: Nota 5 | D13: Plan de Contribuciones
B14: Nota 6 | D14: Ajuste por deterioro y por valuación de instrumentos
B15: Nota 7 | D15: Salida de recursos
B16: Nota 8 | D16: Pérdidas por Diferencial Cambiario y unidades de desarrollo
B17: Nota 9 | D17: Gasto por estimación de Deterioro
B18: Nota 10 | D18: Gastos Generales
B19: Nota 11 | D19: Cuentas Corrientes y de Ahorro
B20: Nota 12 | D20: Inversiones en Instrumentos Financieros
B21: Nota 13 | D21: Productos y dividendos por cobrar asociados a inversiones en instrumentos financieros
B22: Nota 14 | D22: Cuentas por cobrar
B23: Nota 15 | D23: Aportes por cobrar
B24: Nota 16 | D24: Intangibles
B25: Nota 17 | D25: Retenciones a Pensionados
B26: Nota 18 | D26: Obligaciones Por Liquidar Empleados y Exempleados
B27: Nota 19 | D27: Obligaciones Transitorias por Liquidar
B28: Nota 20 | D28: Cotización Seguro De Enfermedad y Maternidad
B29: Nota 21 | D29: Provisiones para pensiones en curso de pago
B30: Nota 22 | D30: Cuentas de orden deudoras y acreedoras
B31: Nota 23 | D31: Rendimientos acumulados
B32: Nota 24 | D32: Resultados del Periodo
B33: Nota 25 | D33: Ganancias o pérdidas por diferencias de cambio y unidades de desarrollo
B34: Nota 26 | D34: Deterioro de activos financieros
B35: Nota 27 | D35: Instrumentos financieros - Al valor Razonable con cambios en el otro resultado integral
B36: Nota 28 | D36: Instrumentos financieros - Al costo amortizado
B37: Nota 29 | D37: Productos y dividendos por cobrar
B38: Nota 30 | D38: Cuentas por cobrar
B39: Nota 31 | D39: Aportes por cobrar
B40: Nota 32 | D40: Cuentas por pagar
B41: Nota 33 | D41: Provisión para pensiones en curso de pago
B42: Nota 34 | D42: Otros pasivos
B43: Nota 35 | D43: Aportaciones recibidas - Reservas en formación
B44: Nota 36 | D44: Ajuste por valuación de instrumentos financieros al valor razonzable con cambios en el ORI

Sheet Balance de Comprobación
C2: Fondo de Jubilaciones y Pensiones del Poder Judicial
C4: Balance de Comprobación
C6: Al 30 de Junio 2020 (Trimestre 2)
C9: ACTIVO
C10: Cuentas Corrientes y De Ahorro | F10: 1.038075305e+10
C11: Al valor razonable con cambios en otros resultados | F11: 3.898644322e+11
C12: Al costo amortizado | F12: 1.987131174e+11
C13: Productos y dividendos por cobrar asociados a inve | F13: 1.00641172e+10
C14: Cuentas por cobrar | F14: 760788524.4
C15: Aportes por cobrar a los trabajadores | F15: 4950151624
C16: Aportes por cobrar al Patrono | F16: 3137009929
C17: Aportes por cobrar al Estado | F17: 307553601.8
C18: Otros Aportes por cobrar | F18: 205282987.7
C19: Valor de adquisición (software) | F19: 7618670
C20: (Amortización acumulada de software adquirido) | F20: -7618670
C21: GASTOS
C22: Otros Gastos Financieros | F22: 5732328145
C23: Gastos por estimación del deterioro | F23: 115604513.1
C24: Gastos de administración | F24: 1787534265
C25: PASIVO
C26: Retenciones a Pensionados | H26: 1531784877
C27: Obligaciones por liquidar empleados y exempleados | H27: 3845542.63
C28: Obligaciones transitorias por liquidar | H28: 3870546519
C29: Provisiones | H29: 590475695.3
C30: Provisión para pensiones en curso de pago | H30: 5.98492642e+11
C31: PATRIMONIO
C32: Patrimonio | H32: 4513898717
C33: INGRESOS
C34: Ingresos financieros por efectivo y equivalentes de efectivo | H34: 124001302.4
C35: Ingresos Financieros por inversiones en instrumentos | H35: 1.092781994e+10
C36: Otros Ingresos Financieros | H36: 5940954255
C37: Ingresos operativos | H37: 22704696.07
C39: Sumas Iguales | F39: =SUM(F10:F24) -> 6.260186735e+11 | H39: =SUM(H26:H37) -> 6.260186735e+11 | I39: =+F39-H39 -> -0.001220703125
C45: Lic. Luis Guillermo Vásquez Ureña | F45: MBA. María Antonieta Herrera Charraun
C46: Jefe Subproceso Contable | F46: Jefa Proceso Presupuestario Contable
D52: MBA. Floribel Campos Solano
D54: Jefa a.i. Macroproceso Financiero Contable
C56: Realizado por:
C57: Licda. Yesenia Flores Chacón
C58: Coordinadora de Unidad 1 a.i.
C61: Observación: Enlace al Manual de Políticas Contables.

Sheet Cambios Act. Netos Disponibles
B1: Fondo de Jubilaciones y Pensiones
B2: Estado de Cambios en los Activos Netos Disponibles
B3: Por el mes terminado al 30/06/2020
B4: (En colones sin céntimos)
C7: NOTAS | D7: Trimestre 2 | G7: Trimestre 1
B9: SALDO INICIAL | D9: 31 DE MARZO 2020 | E9: 2.692547382e+10 | F9: (1) | G9: 31 DE DICIEMBRE 2019 | H9: 5970351615 | I9: (2)
B11: INGRESOS | E11: =D13+D23 -> 1.701548019e+10 | H11: =G13+G23 -> 1.835267571e+10
B13: INGRESOS FINANCIEROS | D13: =+D14+D16+D19 -> 1.69927755e+10 | G13: =+G14+G16+G19 -> 1.833966905e+10
B14: Ingresos Financieros por efectivo y equivalentes de efectivo | D14: =SUM(D15) -> 124001302.4 | G14: =SUM(G15) -> 117111591
B15: Productos por cobrar por intereses en cuentas corres | C15: Nota 1 | D15: =+'Nota 1'!G26 -> 124001302.4 | G15: 117111591
B16: Ingresos Financieros por inversiones en instrumentos financieros | D16: =SUM(D17:D18) -> 1.092781994e+10 | G16: =SUM(G17:G18) -> 1.113378182e+10
B17: Al valor razonable con cambios en otros resultado | C17: Nota 2 | D17: =+'Nota 2'!I16 -> 8644470981 | G17: 8083707734
B18: Al costo amortizado | C18: Nota 2 | D18: =+'Nota 2'!I18 -> 2283348959 | G18: 3050074081
B19: Otros ingresos financieros | D19: =SUM(D20:D22) -> 5940954255 | G19: =SUM(G20:G22) -> 7088775649
B20: Efectivo y equivalentes de efectivo $ | C20: Nota 3 | D20: =+'Nota 3'!E12 -> 61449153.29 | G20: 68225693.96
B21: Al valor razonable con cambios en otro resultado integral | C21: Nota 3 | D21: =+'Nota 3'!E18 -> 5081906840 | G21: 5746239525
B22: Al costo amortizado | C22: Nota 3 | D22: =+'Nota 3'!E20+'Nota 3'!E23 -> 797598261.2 | G22: 1274310430
B23: Ingresos Operativos | C23: Nota 4 | D23: =+'Nota 4'!E16 -> 22704696.07 | G23: 13006651.71
B25: PLAN DE CONTRIBUCIONES | C25: Nota 5 | E25: =SUM(D28:D31) -> 2.283619073e+10 | H25: =SUM(G28:G31) -> 2.289772643e+10
B27: RESERVAS EN FORMACION
B28: De los trabajadores | D28: =+'Nota 5'!F14 -> 9060879498 | G28: 9050857895
B29: Del Patrono | D29: =+'Nota 5'!F15 -> 9833645039 | G29: 9999401548
B30: Del Estado | D30: =+'Nota 5'!F16 -> 964607994 | G30: 978901623.9
B31: De los Pensionados | D31: =+'Nota 5'!F17+'Nota 5'!F18 -> 2977058196 | G31: 2868565359
B33: AJUSTES AL PATRIMONIO
B34: Ajuste por deterioro y por valuación de instrumentos | C34: Nota 6 | E34: =+'Nota 6'!E16 -> -1.267251331e+10 | H34: 2.06791043e+10
B37: RESULTADO DEL PERIODO | E37: =SUM(D38) -> 9380013270 | H37: =+G38 -> 1.030178554e+10
B38: Utilidad del Periodo | D38: =+'Nota 24'!D19 -> 9380013270 | G38: =+'Nota 24'!E19 -> 1.030178554e+10
B40: TOTAL ADICIONES | E40: =E11+E25+E34 -> 2.717915761e+10 | H40: =H11+H25+H34 -> 6.192950644e+10
B42: SALIDA DE RECURSOS | E42: =D43 -> 3.257525252e+10 | H42: =G43 -> 3.292349406e+10
B43: Por Nuevos Pensionados | C43: Nota 7 | D43: =+'Nota 7'!E16 -> 3.257525252e+10 | G43: 3.292349406e+10
B45: GASTOS | E45: =D47+D55+D57 -> 7635466923 | H45: =G47+G55+G57 -> 8050890171
B47: GASTOS FINANCIEROS | D47: =+D48 -> 5732328145 | G47: =+G48 -> 5949779621
B48: Otros Gastos Financieros | D48: =+D49+D51 -> 5732328145 | G48: =+G49+G51 -> 5949779621
B49: Pérdida por diferencial cambiario y unidades de desarrollo | D49: =SUM(D50) -> 7520550.78 | G49: =SUM(G50) -> 63519090.66
B50: Efectivo y Equivalentes de Efectivo $ | C50: Nota 8 | D50: =+'Nota 8'!E12 -> 7520550.78 | G50: 63519090.66
B51: Inversiones en instrumentos financieros | D51: =+D52+D53 -> 5724807594 | G51: =+G52+G53 -> 5886260531
B52: Al Valor Razonable con cambios en otro resultado integral | C52: Nota 8 | D52: =+'Nota 8'!E18 -> 4518190465 | G52: 4973303078
B53: Al Costo Amortizado | C53: Nota 8 | D53: =+'Nota 8'!E20+'Nota 8'!E23+'Nota 8'!E29 -> 1206617129 | G53: 912957452.8
B55: Gastos por estimación del Deterioro | C55: Nota 9 | D55: =+'Nota 9'!E14+'Nota 9'!E20 -> 115604513.1 | G55: =+'Nota 9'!F14+'Nota 9'!F20 -> 295261297.5
B57: GASTOS DE ADMINISTRACIÓN | D57: =+D58 -> 1787534265 | G57: =+G58 -> 1805849253
B58: Gastos Genrales | C58: Nota 10 | D58: =+'Nota 10'!F21 -> 1787534265 | G58: 1805849253
B60: TOTAL DE DEDUCCIONES | E60: =E42+E45 -> 4.021071944e+10 | H60: =H42+H45 -> 4.097438423e+10
B62: ACTIVOS NETOS DISPONIBLES PARA BENEFICIOS
B63: FUTUROS AL FINAL DEL PERIODO (3) | E63: =E9+E40-E60 -> 1.389391199e+10 | H63: =H9+H40-H60 -> 2.692547382e+10
B66: Observaciones:
B67: (1) Saldo inicial mensual: Corresponde al total de activos disponibles para beneficios futuros al final del Primer Trimestre 2020.
B68: (2) Saldo acumulado: Pertenece al total de activos disponibles de beneficios futuros al final del año anterior (Diciembre 2019).
B69: (3) Activos Netos Disponibles para Beneficios Futuros al Final del Periodo: Corresponde a la suma del saldo inicial mas el total de adiciones, menos el total de deducciones.
B71: Lic. Luis Guillermo Vásquez Ureña | E71: MBA. María Antonieta Herrera Charraun
B72: Jefe Subproceso Contable | E72: Jefa Proceso Presupuestario Contable
C74: MBA. Floribel Campos Solano
C76: Jefa a.i. Macroproceso Financiero Contable
B78: Realizado por:
B79: Licda. Yesenia Flores Chacón
B80: Coordinadora de Unidad 1 a.i.
B81: Observación: Enlace al Manual de Políticas Contables.

Sheet Act. Netos Dispon. Beneficios
B2: Fondo de Jubilaciones y Pensiones del Poder Judicial
B3: Estado de Activos Netos Disponibles para Beneficios
B4: AL 30/06/2020
B5: (En colones sin céntimos)
C6: Notas | D6: Trimestre 2 | E6: Trimestre 1
B7: EFECTIVO Y EQUIVALENTES DE EFECTIVO
B8: Cuentas Corrientes y de Ahorro | C8: Nota 11 | D8: =+'Nota 11'!D23 -> 1.038075305e+10 | E8: 6440898046
B10: INVERSIONES EN INSTRUMENTOS FINANCIEROS
B12: Al Valor Razoanble con cambios en otro resultado integral | C12: Nota 12 | D12: =+'Nota 12'!G17 -> 3.898644322e+11 | E12: 3.810810888e+11
B13: Al Valor Razoanble con cambios en resultados | C13: Nota 12 | D13: =+'Nota 12'!G22 -> 0 | E13: 0
B14: Al Costo Amortizado | C14: Nota 12 | D14: =+'Nota 12'!G31 -> 1.987131174e+11 | E14: 2.152893483e+11
B15: Vencidos y Restringidos | C15: Nota 12 | D15: 0 | E15: 0
B16: Productos y dividendos por cobrar asociados a inversiones en instrumentos financieros | C16: Nota 13 | D16: =+'Nota 13'!G41 -> 1.00641172e+10 | E16: 6188413142
B19: CUENTAS POR COBARA
B20: Impuesto sobre la renta por cobrar | C20: Nota 14 | D20: =+'Nota 14'!D13 -> 760788524.4 | E20: 1030980871
B22: APORTES POR COBRAR
B23: Aportes Por Cobrar A Los Trabajadores | C23: Nota 15 | D23: =+'Nota 15'!J11 -> 4950151624 | E23: 4210631532
B24: Aportes Por Cobrar Al Patrono | C24: Nota 15 | D24: =+'Nota 15'!J15 -> 3137009929 | E24: 3920522876
B25: Aportes Por Cobrar Al Estado | C25: Nota 15 | D25: =+'Nota 15'!J18 -> 307553601.8 | E25: 228492269
B26: Otros Aportes Por Cobrar | C26: Nota 15 | D26: =+'Nota 15'!J21 -> 205282987.7 | E26: 207840434.6
B28: OTROS ACTIVOS
B29: Intangibles | C29: Nota 16 | D29: =+'Nota 16'!H8 -> 0 | E29: 0
B31: ACTIVO TOTAL | D31: =SUM(D8:D29) -> 6.183832066e+11 | E31: 6.185982163e+11
B33: CUENTAS POR PAGAR
B34: Retenciones A Pensionados | C34: Nota 17 | D34: =+'Nota 17'!E48 -> 1531784877 | E34: 950322115.2
B35: Obligaciones Por Liquidar Empleados y Exempleados | C35: Nota 18 | D35: =+'Nota 18'!C14 -> 3845542.57 | E35: 3722763.78
B36: Obligaciones Transitorias por Liquidar | C36: Nota 19 | D36: =+'Nota 19'!D26 -> 3870546519 | E36: 3638959117
B38: PROVISIONES
B39: Cotización Seguro De Enfermedad y Maternidad | C39: Nota 20 | D39: =+'Nota 20'!F12 -> 590475695.3 | E39: 598213810.9
B41: PROVISIONES PARA PENSIONES EN CURSO DE PAGO | C41: Nota 21 | D41: =+'Nota 21'!J16 -> 5.98492642e+11 | E41: 5.864815247e+11
B43: PASIVO TOTAL | D43: =SUM(D34:D41) -> 6.044892946e+11 | E43: 5.916727425e+11
B45: ACTIVOS NETOS DISPONIBLES PARA BENEFICIOS FUTUROS (1) | D45: =+'Cambios Act. Netos Disponibles'!E63 -> 1.389391199e+10 | E45: 2.692547382e+10
B47: RESERVAS EN FORMACIÓN | C47: Nota 5 | D47: =SUM(D48:D51) -> 2.283619073e+10 | E47: =SUM(E48:E51) -> 2.289772643e+10
B48: De los trabajadores | D48: =+'Nota 5'!F14 -> 9060879498 | E48: =+'Nota 5'!G14 -> 9050857895
B49: Del patrono | D49: =+'Nota 5'!F15 -> 9833645039 | E49: =+'Nota 5'!G15 -> 9999401548
B50: Del Estado | D50: =+'Nota 5'!F16 -> 964607994 | E50: =+'Nota 5'!G16 -> 978901623.9
B51: De los pensionados | D51: =+'Nota 5'!F17+'Nota 5'!F18 -> 2977058196 | E51: =+'Nota 5'!G17+'Nota 5'!G18 -> 2868565359
B53: RENDIMIENTOS ACUMULADOS | C53: Nota 23 | D53: =SUM(D54:D55) -> 0 | E53: =SUM(E54:E55) -> 0
B54: Rendimientos devengados | D54: =+'Nota 23'!D14 -> 1.007260346e+10 | E54: =+'Nota 23'!D21 -> 1.023946686e+10
B55: (Traslado de recursos a la provisión para pensiones en curso de pago) | D55: =+'Nota 23'!D15 -> -1.007260346e+10 | E55: =+'Nota 23'!D22 -> -1.023946686e+10
B56: AJUSTES AL PATRIMONIO | C56: Nota 6
B57: Ajuste por deterioro y por valuación de instrumentos | D57: =+'Nota 6'!E16 -> -1.267251331e+10 | E57: =+'Cambios Act. Netos Disponibles'!H34 -> 2.06791043e+10
B58: RESULTADO DEL PERIODO | C58: Nota 24
B59: Utilidad del periodo | D59: =+'Nota 24'!D19 -> 9380013270 | E59: =+'Nota 24'!E19 -> 1.030178554e+10
B60: CUENTAS DE ORDEN | C60: Nota 22 | D60: =+'Nota 22'!D12 -> 331222636 | E60: 331222636
B61: Observaciones:
B62: (1) Activos Netos Disponibles para Beneficios Futuros al Final del Periodo: Corresponde al total de activo menos el total de pasivo.
B66: Lic. Luis Guillermo Vásquez Ureña | C66: MBA. María Antonieta Herrera Charraun
B67: Jefe Subproceso Contable | C67: Jefa Proceso Presupuestario Contable
B72: MBA. Floribel Campos Solano
B73: Jefa a.i. Macroproceso Financiero Contable
B76: Realizado por:
B77: Licda. Yesenia Flores Chacón
B78: Coordinadora de Unidad 1 a.i.
B80: Observación: Enlace al Manual de Políticas Contables.

Sheet Flujo de Efectivo
B1: Fondo de Jubilaciones y Pensiones
B2: Flujo de Efectivo
B3: Por el mes terminado al 30/06/2020
B4: (En colones sin céntimos)
C6: NOTA | D6: Trimestre 2 | E6: Trimestre 1
B7: Flujo de efectivo de las actividades de operación
B8: Resultados del período | C8: NOTA 24 | D8: 9380013270 | E8: 1.030178554e+10
B9: Partidas aplicadas a resultados que no requieren uso de fondos
B10: Aumento/(Disminución) por
B11: Depreciaciones y amortizaciones | D11: 0 | E11: 0
B12: Ganancias o pérdidas por diferencias de cambio y unidades de desarrollo | C12: NOTA 25 | D12: -208626109.7 | E12: -1138996028
B13: Ganancias o pérdidas por venta activos no financieros | D13: 0 | E13: 0
B14: Ingresos Financieros | D14: 0 | E14: 0
B15: Estimaciones por Inversiones | D15: 0 | E15: 0
B16: Estimaciones por cartera de crédito | D16: 0 | E16: 0
B17: Estimaciones por otros activos | D17: 0 | E17: 0
B18: Provisiones por prestaciones sociales | D18: 0 | E18: 0
B19: Otras provisiones | D19: 0 | E19: 0
B20: Deterioro de activos financieros | C20: NOTA 26 | D20: 115604513.1 | E20: 295261297.5
B21: Deterioro de propiedades, mobiliario y equipo | D21: 0 | E21: 0
B22: Deterioro de otros activos | D22: 0 | E22: 0
B23: Otros cargos (abonos) a resultado que no significan movimientos de efectivo | D23: 0 | E23: 0
B24: Gasto impuesto de renta | D24: 0 | E24: 0
B25: Flujos de efectivo por actividades de operación | D25: 0 | E25: 0
B26: Aumento/(Disminución) por | D26: 0 | E26: 0
B27: Efectivo y equivalentes de efectivo | D27: 0 | E27: 0
B28: Instrumentos financieros - Al valor Razonable con cambios en el otro resultado integral | C28: NOTA 27 | D28: -2.136283511e+10 | E28: -3.595582498e+11
B29: Instrumentos financieros - Al valor Razonable con cambios en Resultados
B30: Instrumentos financieros - Al costo amortizado | C30: NOTA 28 | D30: 1.657623088e+10 | E30: -2.152893483e+11
B31: Instrumentos financieros - Derivados | D31: 0 | E31: 0
B32: Cartera de créditos | D32: 0 | E32: 0
B33: Productos y dividendos por cobrar | C33: NOTA 29 | D33: -1.365653808e+10 | E33: -2.57526969e+10
B34: Cuentas por cobrar | C34: NOTA 30 | D34: 270192346.8 | E34: -1030980871
B35: Aportes por cobrar | C35: NOTA 31 | D35: -32511031.01 | E35: -8567487111
B36: Bienes y valores adquiridos en recuperación de créditos | D36: 0 | E36: 0
B37: Otros activos | D37: 0 | E37: 0
B38: Cuentas por pagar | C38: NOTA 32 | D38: 813172942.5 | E38: 4593003996
B39: Productos por pagar - Derivados | D39: 0 | E39: 0
B40: Provisión para pensiones en curso de pago | C40: NOTA 33 | D40: 1938513808 | E40: 5.807794746e+11
B41: Otros pasivos | C41: NOTA 34 | D41: -7738115.63 | E41: 598213810.9
B42: Impuesto sobre la renta | D42: 0 | E42: 0
B43: Flujos de efectivo por actividades de inversión | D43: 0 | E43: 0
B44: Aumento/(Disminución) por | D44: 0 | E44: 0
B45: Productos y dividendos cobrados | C45: NOTA 29 | D45: 9780834017 | E45: 1.956428376e+10
B46: Propiedades, planta y equipo | D46: 0 | E46: 0
B47: Intangibles | D47: 0 | E47: 0
B48: Otras actividades de inversión | D48: 0 | E48: 0
B49: Efectivo neto proveniente de actividades de inversión | D49: 0 | E49: 0
B50: Flujos de efectivo por actividades de financiación | D50: 0 | E50: 0
B51: Aumento/(Disminución) por: | D51: 0 | E51: 0
B52: Obligaciones Financieras | D52: 0 | E52: 0
B53: Aportaciones recibidas - Reservas en formación | C53: NOTA 35 | D53: 333541669.5 | E53: 1646634024
B54: Dividendos | D54: 0 | E54: 0
B55: Otras actividades de financiación | D55: 0 | E55: 0
B56: Efectivo neto proveniente de actividades de financiación | D56: 0 | E56: 0
B57: Efectos de las ganancias o pérdidas de cambio en el efectivo y equivalentes al efectivo | D57: 0 | E57: 0
B58: Incremento (Disminución) neto de efectivo y equivalentes de efectivo | D58: 0 | E58: 0
B59: Efectivo y equivalentes de efectivo al principio del período | D59: 6440898046 | E59: 0
B60: Efectivo y equivalentes de efectivo al final del período | D60: =SUM(D8:D59) -> 1.038075305e+10 | E60: 6440898046
B65: Lic. Luis Guillermo Vásquez Ureña | C65: MBA. María Antonieta Herrera Charraun
B66: Jefe Subproceso Contable | C66: Jefa Proceso Presupuestario Contable
B71: MBA. Floribel Campos Solano
B72: Jefa a.i. Macroproceso Financiero Contable
B75: Realizado por:
B76: Licda. Yesenia Flores Chacón
B77: Coordinadora de Unidad 1 a.i.

Sheet Estado de Camb en el Patrimonio
B1: Fondo de Jubilaciones y Pensiones
B2: Estado de Cambios en el Patrimonio
B3: Por el mes terminado al 30/06/2020
B4: (En colones sin céntimos)
B5: Descripción [1] | C5: Notas | D5: Reservas en formación | E5: Rendimientos acumulados | F5: Ajustes al Patrimonio - otros resultados integrales | G5: Otras reservas | H5: Resultados del periodo | I5: TOTAL
B6: Saldo al 1 de enero de 2020
B7: Cambios en las políticas contables
B8: Corrección de errores materiales
B9: Resultado Periodo 1
B10: Reservas legales y otras reservas estatutarias
B11: Aportaciones recibidas (Contribución Solidaria) | C11: NOTA 35 | D11: 1646634024 | I11: 1646634024
B12: (Traslado o liquidación de recursos) | C12: NOTA 23
B13: Superavit por revaluación de activos
B14: Ajuste por valuación de instrumentos financieros al valor razonzable con cambios en el ORI | C14: NOTA 36 | F14: 2.06791043e+10 | I14: 2.06791043e+10
B15: Ajuste por valuación de instrumentos derivados
B16: Reserva saldos deudores
B17: Utilidad (Pérdida) del primer trimestre | H17: 4599735491 | I17: 4599735491
B18: Saldo al 31 de marzo de 2020 | D18: 1646634024 | F18: 2.06791043e+10 | H18: 4599735491 | I18: 2.692547382e+10
B19: Otros resultados integrales periodo 1 | C19: NOTA 23 | E19: 4599735491 | H19: -4599735491
B20: Resultados Integrales Totales periodo 1
B21: Saldo al 1 de junio del 2020 | D21: 1646634024 | E21: 4599735491 | F21: 2.06791043e+10 | G21: 0 | H21: 0 | I21: 2.692547382e+10
B22: Cambios en las políticas contables
B23: Corrección de errores materiales
B24: Saldo corregido periodo 2
B25: Ganancia o pérdida no reconocida en resultados Periodo 2
B26: Resultado Periodo 2 (1 de Junio 2020) | D26: 1646634024 | E26: 4599735491 | F26: 2.06791043e+10 | G26: 0 | H26: 0 | I26: 2.692547382e+10
B27: Otros resultados integrales periodo 2
B28: Resultados Integrales Totales periodo 2
B29: Reservas legales y otras reservas estatutarias
B30: Aportaciones recibidas (Contribución solidaria) | C30: NOTA 35 | D30: 333541669.5 | I30: =SUM(D30:H30) -> 333541669.5
B31: (Traslado o liquidación de recursos) | C31: NOTA 23 | E31: -4599735491 | I31: -4599735491
B32: Superavit por revaluación de activos | I32: 0
B33: Ajuste por valuación de instrumentos financieros al valor razonzable con cambios en el ORI | C33: NOTA 36 | F33: -1.267251331e+10 | I33: =SUM(D33:H33) -> -1.267251331e+10
B34: Ajuste por valuación de instrumentos derivados | I34: =SUM(D34:H34) -> 0
B35: Reserva saldos deudores | I35: 0
B36: Utilidad (Pérdida) del segundo trimestre | H36: 3907145297 | I36: 3907145297
B37: Saldo al 30 de junio de 2020 | D37: =SUM(D26:D36) -> 1980175693 | E37: =SUM(E26:E36) -> 0 | F37: 8006590997 | G37: 0 | H37: 3907145297 | I37: 1.389391199e+10
K39: 1.389391199e+10 | L39: =+I37-K39 -> 0.1499900818
B40: Nota: De acuerdo a lo indicado por la SUPEN el saldo de este estado debe coincidir con el dato del Estado de Cambios de activos netos disponibles.
B42: Lic. Luis Guillermo Vásquez Ureña | F42: MBA. María Antonieta Herrera Charraun
B43: Jefe Subproceso Contable | F43: Jefa Proceso Presupuestario Contable
C46: MBA. Floribel Campos Solano
D47: Jefa a.i. Macroproceso Financiero Contable
B49: Realizado por:
B50: Licda. Yesenia Flores Chacón
B51: Coordinadora de Unidad 1 a.i.

Sheet Nota 1
C2: Nota 1:
C3: Ingresos Financieros por efectivo y equivalentes de efectivo
C5: al 30 de Junio de 2020
C7: Como resultado de los saldos que se mantienen en las cuentas corrientes del Banco Nacional de Costa Rica, Banco de Costa Rica y Banco Popular, al cierre del presente mes los intereses sobre saldos en cuentas corrientes son los siguientes:
C10: Trimestre 2
C11: Cuenta Contable | E11: Banco | G11: Intereses Ganados en el Mes | I11: Tipo de Cambio | K11: Total $
C13: 510.01.04.00.00.1.00.01 | E13: Intereses Fondos Ctas Corrientes-Banco Nacional de CR 1234-0-¢ | G13: 955.76
C14: 510.01.04.00.00.1.00.02 | E14: Intereses Fondos Ctas Corrientes-Banco de Costa Rica 229-32-9-¢ | G14: 121153313.7
C15: 510.01.04.00.00.1.00.03 | E15: Intereses Fondos Ctas Corrientes-Banco Popular Cta 18-1019277-¢ | G15: 18.5
C16: 510.01.04.00.00.1.00.04 | E16: Intereses Fondos Ctas Corrientes-Banco de Costa Rica Cta 174961-7-¢ | G16: 0
C17: 510.01.04.00.00.1.00.05 | E17: Sobre equivalentes de efectivo ¢ | G17: 0
C18: 510.01.04.00.00.1.00.06 | E18: Reportos ¢ | G18: 0
C19: 510.01.04.00.00.2.00.01 | E19: Intereses Fondos Ctas Corrientes-Banco Nacional de CR Cta No 601277-7-$ | G19: 0
C20: 510.01.04.00.00.2.00.02 | E20: Intereses Fondos Ctas Corrientes-Banco Popular Cta No 1914-1-$ | G20: 0
C21: 510.01.04.00.00.2.00.03 | E21: Intereses Fondos Ctas Corrientes-Banco de Costa Rica 112247-9-$ | G21: 2847014.39 | I21: 583.16 | K21: =+G21/I21 -> 4882.046762
C22: 510.01.04.00.00.2.00.04 | E22: Sobre equivalentes de efectivo $ | G22: 0
C23: 510.01.04.00.00.2.00.05 | E23: Reportos $ | G23: 0
C24: 510.01.04.00.00.4.00.01 | E24: Sobre equivalentes de efectivo (UD) | G24: 0
C25: 510.01.04.00.00.4.00.02 | E25: Reportos (UD) | G25: 0
E26: Total | G26: =SUM(G13:G21) -> 124001302.4 | K26: =SUM(K13:K21) -> 4882.046762
C29: Trimestre 1
C30: Cuenta Contable | E30: Banco | G30: Intereses Acumulados | I30: Tipo de Cambio | K30: Total $
C32: 510.01.04.00.00.1.00.01 | E32: Intereses Fondos Ctas Corrientes-Banco Nacional de CR 1234-0-¢ | G32: 2768.38
C33: 510.01.04.00.00.1.00.02 | E33: Intereses Fondos Ctas Corrientes-Banco de Costa Rica 229-32-9-¢ | G33: 116160563.9
C34: 510.01.04.00.00.1.00.03 | E34: Intereses Fondos Ctas Corrientes-Banco Popular Cta 18-1019277-¢ | G34: 144.57
C35: 510.01.04.00.00.1.00.04 | E35: Intereses Fondos Ctas Corrientes-Banco de Costa Rica Cta 174961-7-¢ | G35: 0
C36: 510.01.04.00.00.1.00.05 | E36: Sobre equivalentes de efectivo ¢ | G36: 0
C37: 510.01.04.00.00.1.00.06 | E37: Reportos ¢ | G37: 0
C38: 510.01.04.00.00.2.00.01 | E38: Intereses Fondos Ctas Corrientes-Banco Nacional de CR Cta No 601277-7-$ | G38: 0
C39: 510.01.04.00.00.2.00.02 | E39: Intereses Fondos Ctas Corrientes-Banco Popular Cta No 1914-1-$ | G39: 0
C40: 510.01.04.00.00.2.00.03 | E40: Intereses Fondos Ctas Corrientes-Banco de Costa Rica 112247-9-$ | G40: 948114.18 | I40: 578.74 | K40: 784.4445692
C41: 510.01.04.00.00.2.00.04 | E41: Sobre equivalentes de efectivo $ | G41: 0
C42: 510.01.04.00.00.2.00.05 | E42: Reportos $ | G42: 0
C43: 510.01.04.00.00.4.00.01 | E43: Sobre equivalentes de efectivo (UD) | G43: 0
C44: 510.01.04.00.00.4.00.02 | E44: Reportos (UD) | G44: 0
E45: Total | G45: =SUM(G32:G40) -> 117111591 | K45: =SUM(K32:K40) -> 784.4445692

Sheet Nota 2
B2: Nota 2:
B3: Ingresos Financieros por inversiones en instrumentos financieros
B5: al 30 de Junio de 2020
B9: De acuerdo con lo establecido por la SUPEN, en este grupo se registran las cuentas sobre intereses, dividendos y rendimientos sobre inversiones en instrumentos financieros, por efectivo y equivalentes de efectivo; tanto a nivel nacional y extranjero.
B12: Trimestre 2
A13: Cuenta Contable | B13: Ingresos Financieros por inversiones en instrumentos financieros | D13: COLONES | F13: DOLARES | H13: UDES | I13: TOTAL
B15: Intereses, Dividendos y Rendimientos devengados
A16: 510.02.01 | B16: Al valor razonable con cambios en otros resultado integral | D16: 7441564761 | F16: 1202906219 | H16: 0 | I16: =SUM(D16:H16) -> 8644470981
A17: 510.02.02 | B17: Al valor razonable con cambios en resultados | D17: 0 | F17: 0 | H17: 0 | I17: =SUM(D17:H17) -> 0
A18: 510.02.03 | B18: Al costo amortizado | D18: 1939513488 | F18: 159500387.6 | H18: 184335084.1 | I18: =SUM(D18:H18) -> 2283348959
B19: Total de Ingresos Financieros por inversiones en instrumentos financieros | D19: =SUM(D16:D18) -> 9381078249 | F19: =SUM(F16:F18) -> 1362406607 | H19: =SUM(H16:H18) -> 184335084.1 | I19: =SUM(I16:I18) -> 1.092781994e+10
B21: Trimestre 1
A22: Cuenta Contable | B22: Ingresos Financieros por inversiones en instrumentos financieros | D22: COLONES | F22: DOLARES | H22: UDES | I22: TOTAL
B24: Intereses, Dividendos y Rendimientos devengados
A25: 510.02.01 | B25: Al valor razonable con cambios en otros resultado integral | D25: 6821353804 | F25: 1262353931 | H25: 0 | I25: =SUM(D25:H25) -> 8083707734
A26: 510.02.02 | B26: Al valor razonable con cambios en resultados | D26: 0 | F26: 0 | H26: 0 | I26: =SUM(D26:H26) -> 0
A27: 510.02.03 | B27: Al costo amortizado | D27: 2703167652 | F27: 163464035.1 | H27: 183442392.9 | I27: =SUM(D27:H27) -> 3050074081
B28: Total de Ingresos Financieros por inversiones en instrumentos financieros | D28: =SUM(D25:D27) -> 9524521456 | F28: =SUM(F25:F27) -> 1425817966 | H28: =SUM(H25:H27) -> 183442392.9 | I28: =SUM(I25:I27) -> 1.113378182e+10

Sheet Nota 3
B2: Nota 3:
B3: Ganancias por Diferencial Cambiario y unidades de desarrollo
B5: =+'Nota 2'!$B$5:$H$5 -> al 30 de Junio de 2020
B8: Se registran otros ingresos referente a ganancia generada producto del diferencial cambiario en los instrumentos de la cartera del Fondo de Jubilaciones.
A11: Cuenta Contable | B11: Cuenta | D11: Moneda | E11: Trimestre 2 | F11: Trimestre 1
B12: Efectivo y Equivalentes de Efectivo | E12: =SUM(E13:E15) -> 61449153.29 | F12: =SUM(F13:F15) -> 68225693.96
A13: 510.04.10.01.00.2.00.01 | B13: Cuentas corrientes | D13: Dólares | E13: 61449153.29 | F13: 68225693.96
A14: 510.04.10.01.00.2.00.02 | B14: Sobre equivalentes de efectivo | D14: Dólares | E14: 0 | F14: 0
A15: 510.04.10.01.00.2.00.03 | B15: Reportos | D15: Dólares | E15: 0 | F15: 0
B17: Inversiones en instrumentos financieros | E17: =SUM(E18:E23) -> 5879505101 | F17: =SUM(F18:F23) -> 7020547109
A18: 510.04.10.02.01.2.00 | B18: Al valor razonable con cambios en otro resultado integral $ | D18: Dólares | E18: 5081906840 | F18: 5746239525
A19: 510.04.10.02.02.2.00 | B19: Al valor razonable con cambios en resultados $ | D19: Dólares | E19: 0 | F19: 0
A20: 510.04.10.02.03.2.00 | B20: Al costo amortizado $ | D20: Dólares | E20: 677913516.4 | F20: 881263552
A21: 510.04.10.02.01.4.00 | B21: Al valor razonable con cambios en otro resultado integral (UD) | D21: UDES | E21: 0 | F21: 0
A22: 510.04.10.02.02.4.00 | B22: Al valor razonable con cambios en resultados (UD) | D22: UDES | E22: 0 | F22: 0
A23: 510.04.10.02.03.4.00 | B23: Al costo amortizado (UD) | D23: UDES | E23: 119684744.8 | F23: 393044031.6
B25: Cuentas, Productos y Dividendos por cobrar | E25: =SUM(E26:E33) -> 0 | F25: =SUM(F26:F33) -> 2846.2
A26: 510.04.10.03.00.2.00 | B26: Al valor razonable con cambios en otro resultado integral $ | D26: Dólares | E26: 0 | F26: 0
A27: 510.04.10.03.00.2.01 | B27: Al valor razonable con cambios en resultados $ | D27: Dólares | E27: 0 | F27: 0
A28: 510.04.10.03.00.2.02 | B28: Al costo amortizado $ | D28: Dólares | E28: 0 | F28: 0
A29: 510.04.10.03.00.2.03 | B29: Ganancia del Impuesto sobre la renta por cobrar $ | D29: Dólares | E29: 0 | F29: 2846.2
A30: 510.04.10.03.00.4.00 | B30: Al valor razonable con cambios en otros resultados integral (UD) | D30: UDES | E30: 0 | F30: 0
A31: 510.04.10.03.00.4.01 | B31: Al valor razonable con cambios en resultados (UD) | D31: UDES | E31: 0 | F31: 0
A32: 510.04.10.03.00.4.02 | B32: Al costo amortizado (UD) | D32: UDES | E32: 0 | F32: 0
A33: 510.04.10.03.00.4.03 | B33: Ganancia del Impuesto sobre la renta por cobrar (UD) | D33: UDES | E33: 0 | F33: 0
A49: Interpretación Gráfica Trimestre 2
A50: Esta nota se complementa con la nota N° 8

Sheet Nota 4
B2: Nota 4:
B3: Ingresos Operativos
B5: =+'Nota 2'!$B$5:$H$5 -> al 30 de Junio de 2020
B8: Comprende las cuentas para el registro de los ingresos originados por operaciones no frecuentes, saldos a favor en céntimos de transferencias al Sistema Centralizado de Recaudación (SICERE), específico para el Fondo de Jubilaciones y Pensiones del Poder Judicial.
A11: Cuenta Contable | B11: Cuenta | D11: Moneda | E11: Trimestre 2 | F11: Trimestre 1
B12: Otros ingresos operativos
A13: 513.02.04.00.00.1.00.01 | B13: Ingresos diversos ¢ | D13: Colones | E13: 13113661.53 | F13: 6697737.46
A14: 513.02.04.00.00.2.00.01 | B14: Ingresos diversos $ | D14: Dólares | E14: 9588260.4 | F14: 6306956.88
A15: 513.02.04.00.00.4.00.01 | B15: Ingresos diversos (UDS) | D15: UDES | E15: 2774.14 | F15: 1957.37
B16: Total Otros ingresos operativos | E16: =SUM(E13:E15) -> 22704696.07 | F16: =SUM(F13:F15) -> 13006651.71

Sheet Nota 5
B2: Nota 5:
B3: PLAN DE CONTRIBUCIONES
B5: =++'Nota 2'!$B$5:$H$5 -> al 30 de Junio de 2020
B8: Comprende los aportes realizados por el Poder Judicial en su calidad de Patrono y Estado, los cuales se aplican sobre los salarios devengados por los servidores judiciales.
B10: Asimismo, está constituido por la contribución de los empleados, jubilados y pensionados judiciales, a los cuales en la actualidad se les deduce de su salario, jubilación y pensión.
A12: Cuenta Contable | B12: Aportes | D12: Porcentajes | F12: Trimestre 2 | G12: Trimestre 1
A14: 312.01.01.00.00.1.00 | B14: Trabajadores | D14: 0.13 | F14: 9060879498 | G14: 9050857895
A15: 312.02.01.00.00.1.00 | B15: Patrono | D15: 0.1436 | F15: 9833645039 | G15: 9999401548
A16: 312.03.01.00.00.1.00 | B16: Estado | D16: 0.0141 | F16: 964607994 | G16: 978901623.9
A17: 312.04.01.00.00.1.00.01 | B17: Jubilados y Pensionados | D17: 0.13 | F17: 2643516526 | G17: 2654866135
A18: 312.04.01.00.00.1.00.02 | B18: Contribución Solidaria | D18: - | F18: 333541669.5 | G18: 213699224.9
B20: Total Aportes | F20: =SUM(F14:F18) -> 2.283619073e+10 | G20: =SUM(G14:G18) -> 2.289772643e+10
B22: Notas:
B23: 1-) Mediante la publicación de la Ley 9544, que reforma el Regimen de Jubilaciones y Pensiones del Poder Judicial y Acuerdo del Consejo Superior Sesión N°46-18 celebrada el 22/05/2018, art VI, se solicita realizar a partir de esta fecha el incremento al aporte obrero del 11% al 13%, así como el rebajo de la contribución especial, solidaria y redistributiva a las personas jubiladas y pensionadas, conforme el articulo 236 de esta Ley.
B25: 3-) En el Acuerdo del Consejo Superior, sesión N° 4-19 del 17 de enero de 2019 artículo XXXVI se acordó: "Tomar nota de la comunicación de la Dirección de Gestión Humana, en oficio DGH-004-2019 del 10 de enero de 2019, referente a el cambio realizado en el parámetro del aporte estatal al Fondo de Jubilaciones y Pensiones de un 0.58% a 1.24%, fundamentado en los recursos asignados por el Ministerio de Hacienda en la subpartida 60404, según lo establecido en la Ley de Presupuesto Ordinario y Extraordinario de la República para el Ejercicio Económico del 2019."
B27: 4-) En el aporte de trabajadores incluye el rubro de Reconocimiento de tiempo servido.
B28: 5-) Según la directriz DGPN-SD-0242-2019 del 12 de abril de 2019, el porcentaje del aporte estatal cambia a 1.41% a partir de enero de 2020.

Sheet Nota 6
B2: Nota 6:
B3: Ajuste por deterioro y por valuación de instrumentos
B5: =+'Nota 5'!B5:G5 -> al 30 de Junio de 2020
B8: Se registran los ajustes al patrimonio que representan correcciones en su valor, como, valuación de instrumentos financieros y de derivados, según las reglas de valuación establecidas para las cuentas de activo.
A10: Trimestral 2
A11: Cuenta Contable | B11: Cuenta | C11: Colón | D11: Dólar | E11: Trimestre 2
A13: 314.02.01.00.00 | B13: Ganancias no realizadas por valuación de instr. | C13: -1.100127256e+10 | D13: 173504160.9 | E13: =SUM(C13:D13) -> -1.08277684e+10
A14: 314.02.02.00.00 | B14: (Pérdidas no realizadas por valuación de instr. | C14: -220902796.6 | D14: -1590638093 | E14: =SUM(C14:D14) -> -1811540890
A15: 314.02.03.00.00 | B15: Ajuste por deterioro de instrumentos financieros | C15: 62535846.88 | D15: -95739864.26 | E15: -33204017.38
B16: TOTAL | E16: =SUM(E13:E15) -> -1.267251331e+10
A18: Trimestral 1
A19: Cuenta Contable | B19: Cuenta | C19: Colón | D19: Dólar | E19: Trimestre 1
A21: 314.02.01.00.00 | B21: Ganancias no realizadas por valuación de instr. | C21: 2.408873094e+10 | D21: 651627853.8 | E21: =SUM(C21:D21) -> 2.47403588e+10
A22: 314.02.02.00.00 | B22: (Pérdidas no realizadas por valuación de instr. | C22: -4378616.86 | D22: -4352137175 | E22: =SUM(C22:D22) -> -4356515792
A23: 314.02.03.00.00 | B23: Ajuste por deterioro de instrumentos financieros | C23: 162762738.6 | D23: 132498558.9 | E23: 295261297.5
B24: TOTAL | E24: =SUM(E21:E23) -> 2.06791043e+10

Sheet Nota 7
B2: Nota 7:
B3: SALIDA DE RECURSOS
B5: =+'Nota 5'!B5:G5 -> al 30 de Junio de 2020
B8: Corresponde al traslado de todos los recursos de la cuenta patrimonial “Reserva en Formación” a la cuenta Provisión para Pensiones en Curso de Pago”, por ende todos los recursos generados de los aportes, así como los rendimientos obtenidos por las inversiones se continúan registrando en la Provisión Para Pensiones en Curso de Pago.
D11: Cuenta | E11: Trimestre 2 | F11: Trimestre 1
D13: Aportes | E13: 2.250264906e+10 | F13: 2.26840272e+10
D14: Rendimientos | E14: 1.007260346e+10 | F14: 1.023946686e+10
D16: TOTAL | E16: =SUM(E13:E14) -> 3.257525252e+10 | F16: =SUM(F13:F14) -> 3.292349406e+10

Sheet Nota 8
B2: Nota 8:
B3: Pérdidas por Diferencial Cambiario y unidades de desarrollo
B5: =+'Nota 5'!B5:G5 -> al 30 de Junio de 2020
B8: Se registran otros ingresos referente a pérdidas generada producto del diferencial cambiario en los instrumentos de la cartera del Fondo de Jubilaciones.
A11: Cuenta Contable | B11: Cuenta | D11: Moneda | E11: Trimestre 2 | F11: Trimestre 1
B12: Efectivo y Equivalentes de Efectivo | E12: =SUM(E13:E15) -> 7520550.78 | F12: =SUM(F13:F15) -> 63519090.66
A13: 410.04.10.01.00.2.00.01 | B13: Cuentas corrientes | D13: Dólares | E13: 7520550.78 | F13: 63519090.66
A14: 410.04.10.01.00.2.00.02 | B14: Sobre equivalentes de efectivo | D14: Dólares | E14: 0 | F14: 0
A15: 410.04.10.01.00.2.00.03 | B15: Reportos | D15: Dólares | E15: 0 | F15: 0
B17: Inversiones en instrumentos financieros | E17: =SUM(E18:E23) -> 5724807525 | F17: =SUM(F18:F23) -> 5886238259
A18: 410.04.10.02.01.2.00 | B18: Al valor razonable con cambios en otro resultado integral $ | D18: Dólares | E18: 4518190465 | F18: 4973303078
A19: 410.04.10.02.02.2.00 | B19: Al valor razonable con cambios en resultados $ | D19: Dólares | E19: 0 | F19: 0
A20: 410.04.10.02.03.2.00 | B20: Al costo amortizado $ | D20: Dólares | E20: 607826907 | F20: 776381391.5
A21: 410.04.10.02.01.4.00 | B21: Al valor razonable con cambios en otro resultado integral (UD) | D21: UDES | E21: 0 | F21: 0
A22: 410.04.10.02.02.4.00 | B22: Al valor razonable con cambios en resultados (UD) | D22: UDES | E22: 0 | F22: 0
A23: 410.04.10.02.03.4.00 | B23: Al costo amortizado (UD) | D23: UDES | E23: 598790153.5 | F23: 136553789.2
B25: Cuentas, Productos y Dividendos por cobrar | E25: =SUM(E26:E33) -> 68.86 | F25: =SUM(F26:F33) -> 22272.01
A26: 410.04.10.03.00.2.00 | B26: Al valor razonable con cambios en otro resultado integral $ | D26: Dólares | E26: 0 | F26: 0
A27: 410.04.10.03.00.2.01 | B27: Al valor razonable con cambios en resultados $ | D27: Dólares | E27: 0 | F27: 0
A28: 410.04.10.03.00.2.02 | B28: Al costo amortizado $ | D28: Dólares | E28: 0 | F28: 0
A29: 410.04.10.03.00.2.03 | B29: Ganancia del Impuesto sobre la renta por cobrar $ | D29: Dólares | E29: 68.86 | F29: 22272.01
A30: 410.04.10.03.00.4.00 | B30: Al valor razonable con cambios en otros resultados integral (UD) | D30: UDES | E30: 0 | F30: 0
A31: 410.04.10.03.00.4.01 | B31: Al valor razonable con cambios en resultados (UD) | D31: UDES | E31: 0 | F31: 0
A32: 410.04.10.03.00.4.02 | B32: Al costo amortizado (UD) | D32: UDES | E32: 0 | F32: 0
A33: 410.04.10.03.00.4.03 | B33: Ganancia del Impuesto sobre la renta por cobrar (UD) | D33: UDES | E33: 0 | F33: 0
A45: Interpretación Gráfica Trimestre 2
A46: Esta nota se complementa con la nota N° 3

Sheet Nota 9
B2: Nota 9:
B3: Gasto por estimación de Deterioro
B5: =+'Nota 7'!B5:E5 -> al 30 de Junio de 2020
B8: Comprende los movimientos de la estimación de deterioro en activos sobre los instrumentos financieros, de cuentas, productos, dividendos y aportes por cobrar.
A11: Cuenta Contable | B11: Cuenta | D11: Moneda | E11: Trimestre 2 | F11: Trimestre 1
A12: 411.01.01.00.00.1.00.01 | B12: Al valor razonable con cambios en otro resultado integral | D12: Colones | E12: 62535846.89 | F12: 162762738.6
A13: 411.01.01.00.00.2.00.01 | B13: Al valor razonable con cambios en otro resultado integral | D13: Dólares | E13: -95739864.27 | F13: 132498558.9
B14: Total | E14: =SUM(E12:E13) -> -33204017.38 | F14: =SUM(F12:F13) -> 295261297.5
A16: Cuenta Contable | B16: Cuenta | D16: Moneda | E16: Trimestre 2 | F16: Trimestre 1
A17: 411.01.02.00.00.1.00.01 | B17: Al costo amortizado ¢ | D17: Colones | E17: 75277044.81 | F17: 0
A18: 411.01.02.00.00.2.00.01 | B18: Al costo amortizado $ | D18: Dólares | E18: 20646082.18 | F18: 0
A19: 411.01.02.00.00.4.00.01 | B19: Al costo amortizado (UD) | D19: UDES | E19: 52885403.46 | F19: 0
B20: Total | E20: =SUM(E17:E19) -> 148808530.5 | F20: =SUM(F17:F19) -> 0

Sheet Nota 10
B2: Nota 10:
B3: GASTOS GENERALES
B5: al 30 de Junio de 2020
B8: Esta cuenta agrupa varias partidas, las cuales se describen a continuación:
A11: Cuenta Contable | B11: GASTOS GENERALES | D11: Moneda | F11: Trimestre 2 | G11: Trimestre 1
A13: 414.02.07.00.00.1 | B13: Servicios profesionales | D13: Colón | F13: 0 | G13: 0
A14: 414.02.08.00.00.1 | B14: Servicios bancarios ¢ | D14: Colón | F14: 191447.73 | G14: 208649.7
A15: 414.02.09.00.00.1 | B15: Cotización Seguro de enfermedad y maternidad | D15: Colón | F15: 1779292973 | G15: 1787441210
A16: 414.02.14.00.00.1.00 | B16: Gastos diversos ¢ | D16: Colón | F16: 619030.99 | G16: 259594.86
A17: 414.02.08.00.00.2 | B17: Servicios bancarios $ | D17: Dólar | F17: 0 | G17: 1213966.1
A18: 414.02.14.00.00.2.00 | B18: Gastos diversos $ | D18: Dólar | F18: 7430812.89 | G18: 16725815.78
A19: 414.02.14.00.00.4.00 | B19: Gastos diversos (UD) | D19: Udes | F19: 0.18 | G19: 15.91
B21: TOTAL DE GASTOS GENERALES | F21: =SUM(F13:F19) -> 1787534265 | G21: =SUM(G13:G19) -> 1805849253
B23: Gastos por servicios bancarios:
B24: Corresponde a gastos por comisiones bancarias cobradas por el Banco Nacional , lo anterior a raíz de conclusión “Convenio Institucional entre el Poder Judicial y la referida Entidad Bancaria”, cuyo objeto consistía en que el Poder Judicial aceptaba realizar una serie de transacciones bancarias con el Banco Nacional, a efecto de recibir un trato preferencial en algunos servicios bancarios, como lo fueron: exoneración del pago de cualquier tipo de comisión (transferencias electrónicas, giros bancarios, emisión de estados de cuenta, transacciones “SINPE”, transferencias entre cuentas del Poder Judicial y el Fondo de Jubilaciones y Pensiones), dichos gastos son del conocimiento de la Dirección Ejecutiva, según oficios DGBI-SML-25-2016, 2232-DE-2016 y 2342-DE-2016.
B26: Cotización Seguro de Enfermedad y Maternidad:
B27: Carga social en la que incurre el Fondo como Patrono, con la Caja Costarricense del Seguro Social, por concepto de Enfermedad y Maternidad, correspondiente al 8.75% sobre las jubilaciones y pensiones canceladas.
B29: Gastos diversos
B30: Corresponde a diversos ajustes relacionados principalmente con las inversiones y cuentas relacionadas.

Sheet Nota 11
B2: Nota 11:
B3: Cuentas Corrientes y de Ahorro
B5: =+'Nota 10'!B5:F5 -> al 30 de Junio de 2020
B8: El saldo en cuentas corrientes bancarias que mantiene el Fondo de Jubilaciones en colones y en dólares americanos son los siguientes:
A9: Trimestre 2
A10: Cuenta Contable | B10: CUENTAS CORRIENTES Y DE AHORRO PROV. PARA PENSIONES EN CURSO DE PAGO | D10: TOTAL ¢ | F10: TIPO DE CAMBIO | H10: TOTAL $
A12: 110.02.01.01.00.1.00.01 | B12: Banco Nacional de C.R. Cta 1234-0 | D12: 99000.28
A13: 110.02.01.01.00.1.00.02 | B13: Banco de Costa Rica Cta 229-32-9 | D13: 1.023579396e+10
A14: 110.02.01.01.00.1.00.03 | B14: Banco de Costa Rica Cta 174961-7 | D14: 0
A15: 110.02.01.01.00.1.00.04 | B15: Banco Popular Cta 1019277-0 | D15: 0
A16: 110.02.01.01.00.1.00.05 | B16: Banco Nacional de C.R. 2413-8 | D16: 0
A17: 110.02.01.01.00.1.00.06 | B17: Banco de Costa Rica 349803-4 | D17: 82.23
A18: 110.02.01.01.00.1.00.07 | B18: Banco de Costa Rica 349824-7 | D18: 0
A19: 110.02.01.01.00.2.00.01 | B19: Banco de Costa Rica Cta. 112247-9 $ | D19: 144042429.1 | F19: 583.16 | H19: 247003.2737
A20: 110.02.01.01.00.2.00.02 | B20: Banco Nacional de C.R. Cta 601227-7 $ | D20: 817578.65 | F20: 583.16 | H20: 1401.979988
A21: 110.02.01.01.00.2.00.03 | B21: Banco Popular Cta 1914-1 $ | D21: 0 | H21: 0
B23: TOTAL EN CUENTAS CORRIENTES Y DE AHORRO | D23: =SUM(D12:D21) -> 1.038075305e+10 | H23: =SUM(H19:H21) -> 248405.2537
B25: Nota:
B26: Los documentos pendientes de asocies y aprobaciones, se informaron a los Subprocesos correspondientes para su registro, y así el debido seguimiento.
A27: Trimestre 1
A28: Cuenta Contable | B28: CUENTAS CORRIENTES Y DE AHORRO PROV. PARA PENSIONES EN CURSO DE PAGO | D28: TOTAL ¢ | F28: TIPO DE CAMBIO | H28: TOTAL $
A30: 110.02.01.01.00.1.00.01 | B30: Banco Nacional de C.R. Cta 1234-0 | D30: 99943.56
A31: 110.02.01.01.00.1.00.02 | B31: Banco de Costa Rica Cta 229-32-9 | D31: 6351960449
A32: 110.02.01.01.00.1.00.03 | B32: Banco de Costa Rica Cta 174961-7 | D32: 0
A33: 110.02.01.01.00.1.00.04 | B33: Banco Popular Cta 1019277-0 | D33: 0
A34: 110.02.01.01.00.1.00.05 | B34: Banco Nacional de C.R. 2413-8 | D34: 0
A35: 110.02.01.01.00.1.00.06 | B35: Banco de Costa Rica 349803-4 | D35: 82.23
A36: 110.02.01.01.00.1.00.07 | B36: Banco de Costa Rica 349824-7 | D36: 0
A37: 110.02.01.01.00.2.00.01 | B37: Banco de Costa Rica Cta. 112247-9 $ | D37: 88433159.73 | F37: 578.74 | H37: 152802.9162
A38: 110.02.01.01.00.2.00.02 | B38: Banco Nacional de C.R. Cta 601227-7 $ | D38: 404411.93 | F38: 578.74 | H38: 698.7799876
A39: 110.02.01.01.00.2.00.03 | B39: Banco Popular Cta 1914-1 $ | D39: 0 | F39: 578.74 | H39: 0
B41: TOTAL EN CUENTAS CORRIENTES Y DE AHORRO | D41: =SUM(D30:D39) -> 6440898046 | H41: =SUM(H37:H39) -> 153501.6962

Sheet Nota 12
B2: Nota 12:
B3: Inversiones en Instrumentos Financieros
B5: =+'Nota 11'!B5:H5 -> al 30 de Junio de 2020
B8: Dicho rubro resume los diferentes movimientos de inversiones en colones y dólares de acuerdo al modelo de negocio considerando costo de adquisición (Valor Facial + Primas – Descuentos).
A9: Trimestre 2
A10: Cuenta Contable | B10: Al valor razonable con cambios en otros resultados integral | D10: Colones | E10: Dólares | F10: Udes | G10: Total
A11: 120.01.00.00.00
B12: Valor de Adquisición | D12: 308374749341 | E12: 7.795485214e+10 | F12: 0 | G12: =+D12+E12 -> 3.863296015e+11
B13: (Amortización de principal) | D13: 0 | E13: 0 | F13: 0 | G13: =+D13+E13 -> 0
B14: (Amortización de Primas) | D14: -4662888528 | E14: -101709991.1 | F14: 0 | G14: -4764598519
B15: Amortización de Descuentos | D15: 389571845.8 | E15: 165323702.3 | F15: 0 | G15: 554895548.1
B16: Ajuste por valuación | D16: 1.286217697e+10 | E16: -5117643254 | F16: 0 | G16: 7744533717
B17: Total | D17: =SUM(D12:D16) -> 3.169636096e+11 | E17: =SUM(E12:E16) -> 7.29008226e+10 | F17: 0 | G17: =SUM(G12:G16) -> 3.898644322e+11
A19: Cuenta Contable | B19: Al valor razonable con cambios en resultados | D19: Colones | E19: Dólares | F19: Udes | G19: Total
A20: 120.02.00.00.00
B21: Valor de Adquisición
B22: Total | D22: 0 | E22: 0 | F22: 0 | G22: 0
A24: Cuenta Contable | B24: Al costo amortizado | D24: Colones | E24: Dólares | F24: Udes | G24: Total
A25: 120.03.00.00.00
B26: Valor de Adquisición | D26: 8.906721219e+10 | E26: 1.006058994e+10 | F26: 1.039182818e+11 | G26: =+D26+E26+F26 -> 2.03046084e+11
B27: (Amortización de principal) | D27: 0 | E27: 0 | F27: 0 | G27: =+D27+E27+F27 -> 0
B28: (Amortización de Primas) | D28: -113963112.5 | E28: 0 | F28: -4148830595 | G28: -4262793708
B29: Amortización de Descuentos | D29: 61149926.17 | E29: 0 | F29: 17485761.44 | G29: 78635687.61
B30: (Estimación por deterioro) | D30: -75277044.81 | E30: -20646082.18 | F30: -52885403.46 | G30: -148808530.5
B31: Total | D31: =SUM(D26:D30) -> 8.893912195e+10 | E31: =SUM(E26:E30) -> 1.003994386e+10 | F31: =SUM(F26:F30) -> 9.973405161e+10 | G31: =SUM(G26:G30) -> 1.987131174e+11
B33: Resumen | D33: Colones | E33: Dólares | F33: Udes | G33: Total
B34: Al valor razonable con cambios en otros resultados integral | D34: 3.169636096e+11 | E34: 7.29008226e+10 | F34: 0 | G34: =+D34+E34+F34 -> 3.898644322e+11
B35: Al valor razonable con cambios en resultados | D35: 0 | E35: 0 | F35: 0 | G35: =+D35+E35+F35 -> 0
B36: Al costo amortizado | D36: 8.893912195e+10 | E36: 1.003994386e+10 | F36: 9.973405161e+10 | G36: 1.987131174e+11
D38: =+D34+D35+D36 -> 4.059027316e+11 | E38: =+E34+E35+E36 -> 8.294076646e+10 | F38: =+F34+F35+F36 -> 9.973405161e+10
B45: Interpretación Gráfica Trimestre 2
A62: Trimestre 1
A63: Cuenta Contable | B63: Al valor razonable con cambios en otros resultados integral | D63: Colones | E63: Dólares | F63: Udes | G63: Total
A64: 120.01.00.00.00
B65: Valor de Adquisición | D65: 2.888535534e+11 | E65: 7.578846824e+10 | F65: 0 | G65: =+D65+E65 -> 3.646420216e+11
B66: (Amortización de principal) | D66: 0 | E66: 0 | F66: 0 | G66: =+D66+E66 -> 0
B67: (Amortización de Primas) | D67: -4300906200 | E67: -97109122.7 | F67: 0 | G67: -4398015322
B68: Amortización de Descuentos | D68: 312842874.8 | E68: 140396669.7 | F68: 0 | G68: 453239544.5
B69: Ajuste por valuación | D69: 2.408435233e+10 | E69: -3700509321 | F69: 0 | G69: 2.038384301e+10
B70: Total | D70: =SUM(D65:D69) -> 3.089498424e+11 | E70: =SUM(E65:E69) -> 7.213124647e+10 | F70: 0 | G70: =SUM(G65:G69) -> 3.810810888e+11
A72: Cuenta Contable | B72: Al valor razonable con cambios en resultados | D72: Colones | E72: Dólares | F72: Udes | G72: Total
A73: 120.02.00.00.00
B74: Valor de Adquisición
B75: Total | D75: 0 | E75: 0 | F75: 0 | G75: 0
A77: Cuenta Contable | B77: Al costo amortizado | D77: Colones | E77: Dólares | F77: Udes | G77: Total
A78: 120.03.00.00.00
B79: Valor de Adquisición | D79: 1.04417961e+11 | E79: 1.056307676e+10 | F79: 1.044149395e+11 | G79: =+D79+E79+F79 -> 2.193959772e+11
B80: (Amortización de principal) | D80: 0 | E80: 0 | F80: 0 | G80: =+D80+E80+F80 -> 0
B81: (Amortización de Primas) | D81: -98264242.72 | E81: 0 | F81: -4081067122 | G81: -4179331364
B82: Amortización de Descuentos | D82: 55532197.32 | E82: 0 | F82: 17170229.14 | G82: 72702426.46
B83: Total | D83: =SUM(D79:D82) -> 1.04375229e+11 | E83: =SUM(E79:E82) -> 1.056307676e+10 | F83: 1.003510426e+11 | G83: 2.152893483e+11
B86: Resumen | D86: Colones | E86: Dólares | F86: Udes | G86: Total
B87: Al valor razonable con cambios en otros resultados integral | D87: 3.089498424e+11 | E87: 7.213124647e+10 | F87: 0 | G87: =+D87+E87+F87 -> 3.810810888e+11
B88: Al valor razonable con cambios en resultados | D88: 0 | E88: 0 | F88: 0 | G88: =+D88+E88+F88 -> 0
B89: Al costo amortizado | D89: 1.04375229e+11 | E89: 1.056307676e+10 | F89: 1.003510426e+11 | G89: 2.152893483e+11
D91: =+D87+D88+D89 -> 4.133250713e+11 | E91: =+E87+E88+E89 -> 8.269432322e+10 | F91: =+F87+F88+F89 -> 1.003510426e+11
B93: Interpretación Gráfica Trimestre 1

Sheet Nota 13
B2: Nota 13:
B3: Productos y dividendos por cobrar asociados a inversiones en instrumentos financieros
B5: =+'Nota 11'!B5:H5 -> al 30 de Junio de 2020
B8: La cuenta se conforma por el registro de:
B10: · La parte proporcional de los intereses, rendimientos y dividendos por las inversiones, que fueron adquiridas por el Fondo.
B11: · Además comprende los registros de aquellas inversiones que a su fecha de vencimiento deben ser reclasificados según lo requerido por el ente Rector a las cuentas de vencidos y restringidos.
A13: Trimestre 2
A14: Cuenta Contable | B14: Al valor razonable con cambios en otros resultados integral | D14: Colones | E14: Dólares | F14: Udes | G14: Total
A15: 120.07.01.01.00
B16: Intereses | D16: 6860504726 | E16: 627047671 | F16: 0 | G16: =SUM(D16:F16) -> 7487552397
B17: Rendimientos | D17: 0 | E17: 0 | F17: 0 | G17: =SUM(D17:F17) -> 0
B18: Dividendos | D18: 0 | E18: 417764289 | F18: 0 | G18: 417764289
B19: Total | D19: =SUM(D16:D18) -> 6860504726 | E19: =SUM(E16:E18) -> 1044811960 | F19: 0 | G19: 7905316686
A21: Cuenta Contable | B21: Al valor razonable con cambios en resultados | D21: Colones | E21: Dólares | F21: Udes | G21: Total
A22: 120.07.01.02.00
B23: Intereses | D23: 0 | E23: 0 | F23: 0 | G23: 0
B24: Rendimientos | D24: 0 | E24: 0 | F24: 0 | G24: 0
B25: Dividendos | D25: 0 | E25: 0 | F25: 0 | G25: 0
B26: Total | D26: 0 | E26: 0 | F26: 0 | G26: 0
A28: Cuenta Contable | B28: Al costo amortizado | D28: Colones | E28: Dólares | F28: Udes | G28: Total
A29: 120.07.01.03.00
B30: Intereses | D30: 1568493399 | E30: 85451548.69 | F30: 504855570.7 | G30: =SUM(D30:F30) -> 2158800518
B31: Rendimientos | D31: 0 | E31: 0 | F31: 0 | G31: 0
B32: Dividendos | D32: 0 | E32: 0 | F32: - | G32: 0
B33: Total | D33: =SUM(D30:D32) -> 1568493399 | E33: =SUM(E30:E32) -> 85451548.69 | F33: =SUM(F30:F32) -> 504855570.7 | G33: =SUM(G30:G32) -> 2158800518
B36: Resumen | D36: Colones | E36: Dólares | F36: Udes | G36: Total
B37: Al valor razonable con cambios en otros resultados integral | D37: 6860504726 | E37: 1044811960 | F37: 0 | G37: =SUM(D37:F37) -> 7905316686
B38: Al valor razonable con cambios en resultados | D38: 0 | E38: 0 | F38: 0 | G38: =SUM(D38:F38) -> 0
B39: Al costo amortizado | D39: 1568493399 | E39: 85451548.69 | F39: 504855570.7 | G39: 2158800518
D41: =SUM(D37:D40) -> 8428998124 | E41: =SUM(E37:E40) -> 1130263509 | F41: 504855570.7 | G41: =SUM(G37:G40) -> 1.00641172e+10
A45: Interpretación Gráfica Trimestre 2
A63: Trimestre 1
A64: Cuenta Contable | B64: Al valor razonable con cambios en otros resultados integral | D64: Colones | E64: Dólares | F64: Udes | G64: Total
A65: 120.07.01.01.00
B66: Intereses | D66: 3362058344 | E66: 339493074.1 | F66: 0 | G66: =SUM(D66:F66) -> 3701551418
B67: Rendimientos | D67: 0 | E67: 0 | F67: 0 | G67: =SUM(D67:F67) -> 0
B68: Dividendos | D68: 0 | E68: 490875780 | F68: 0 | G68: 490875780
B69: Total | D69: =SUM(D66:D68) -> 3362058344 | E69: =SUM(E66:E68) -> 830368854.1 | F69: 0 | G69: 4192427198
A71: Cuenta Contable | B71: Al valor razonable con cambios en resultados | D71: Colones | E71: Dólares | F71: Udes | G71: Total
A72: 120.07.01.02.00
B73: Intereses | D73: 0 | E73: 0 | F73: 0 | G73: 0
B74: Rendimientos | D74: 0 | E74: 0 | F74: 0 | G74: 0
B75: Dividendos | D75: 0 | E75: 0 | F75: 0 | G75: 0
B76: Total | D76: 0 | E76: 0 | F76: 0 | G76: 0
A78: Cuenta Contable | B78: Al costo amortizado | D78: Colones | E78: Dólares | F78: Udes | G78: Total
A79: 120.07.01.03.00
B80: Intereses | D80: 1662850386 | E80: 97617991.44 | F80: 235517566.3 | G80: =SUM(D80:F80) -> 1995985944
B81: Rendimientos | D81: 0 | E81: 0 | F81: 0 | G81: 0
B82: Dividendos | D82: 0 | E82: 0 | F82: - | G82: 0
B83: Total | D83: =SUM(D80:D82) -> 1662850386 | E83: =SUM(E80:E82) -> 97617991.44 | F83: =SUM(F80:F82) -> 235517566.3 | G83: =SUM(G80:G82) -> 1995985944
B85: Resumen | D85: Colones | E85: Dólares | F85: Udes | G85: Total
B86: Al valor razonable con cambios en otros resultados integral | D86: 3362058344 | E86: 830368854.1 | F86: 0 | G86: =SUM(D86:F86) -> 4192427198
B87: Al valor razonable con cambios en resultados | D87: 0 | E87: 0 | F87: 0 | G87: =SUM(D87:F87) -> 0
B88: Al costo amortizado | D88: 1662850386 | E88: 97617991.44 | F88: 235517566.3 | G88: 1995985944
D89: =SUM(D86:D90) -> 5024908730 | E89: =SUM(E86:E90) -> 927986845.5 | F89: =SUM(F86:F90) -> 235517566.3 | G89: =SUM(G86:G90) -> 6188413142
A93: Interpretación Gráfica Trimestre 1

Sheet Nota 14
B2: Nota 14:
B3: CUENTAS POR COBRAR
B5: =+'Nota 12'!B5:H5 -> al 30 de Junio de 2020
B6: En esta cuenta se registran aquellas partidas que debe recuperar el Fondo y se conforma por los siguientes conceptos:
A8: Cuenta Contable | B8: Cuentas por Cobrar | D8: Trimestre 2 | E8: Trimestre 1
A10: 130.01.00.00.00 | B10: Impuesto Sobre La Renta Por Cobrar | D10: 760764302.2 | E10: 1030539286
A11: 130.03.01.00.00 | B11: Sumas pendientes de cobrar otras | D11: 24222.16 | E11: 441585.41
B13: Saldo: | D13: =SUM(D10:D12) -> 760788524.4 | E13: =SUM(E10:E12) -> 1030980871
B15: 1) Corresponden aquellas sumas que debe recuperar el Régimen por concepto de exención del 8% del impuesto sobre la renta de los títulos valores, que por su situación particular, no es posible cobrarlos inmediatamente con el vencimiento de los cupones. El Subproceso de Ingresos indica lo siguiente con el seguimiento: (1) La Presidencia de la Corte remitió un oficio a Casa Presidencial para los años 2004 y 2005. La Dirección Ejecutiva con oficio 4167-DE-2019 del 11/09/2019 indicó al Director del Despacho de la Presidencia: "Traslado copia de oficio N° 737-TI-2019 de fecha 9 de setiembre en curso, referente a la devolución del impuesto sobre renta de vieja data, a efecto de que se nos informe si se ha tenido algún avance respecto a las conversaciones con el Presidente de la República, encomendadas por el Consejo Superior en sesión N° 84-18 celebrada el 25 de setiembre de 2018, artículo XV". Al respecto, la Presidencia de la Corte en el mes de setiembre de 2019, remite consulta por correo electrónico de fecha a Casa Presidencial el cual cita: "Siguiendo instrucciones superiores y en referencia al oficio adjunto, el cual fue recibido por el Ministerio de la Presidencia el 4 de abril de 2019, me permito consultarle si existe alguna respuesta al respecto." Se mantiene el seguimiento del caso. (2) La Presidencia de la Corte remitió un oficio a Grandes Contribuyentes para lo del periodo 2018. La Dirección Ejecutiva con oficio 4669-DE-2019 del 04 de octubre de 2019 remite a Financiero Contable el acuerdo del Consejo Superior de Sesión 80-19 del 12 de setiembre de 2019, mediante el cual se acordó: "...) Tener por recibido el oficio N° 4040-DE-2019 del 5 de setiembre de 2019, suscrito por la máster Ana Eugenia Romero Jenkins, Directora Ejecutiva, relacionado con las acciones legales procedentes en relación a la resolución DGCN-133-2019, emitida por la señora Patricia Castillo Vargas, directora de la Dirección de Grandes Contribuyentes Nacionales. 2.) Deberá el Departamento de Financiero Contable alertar a la Junta Administradora del Fondo de Pensiones del Poder Judicial, en el informe de traspaso de la Comisión del Fondo de Jubilaciones y Pensiones del Poder Judicial, sobre la situación expuesta en el criterio jurídico N° DJ-2361-2019 de fecha 3 de setiembre de 2019, suscrito por el máster Rodrigo Alberto Campos Hidalgo, Director Jurídico..." (3) El Subproceso de Ingresos realizó las gestiones correspondientes para la devolución de los correspondiente de Fondos Inmobiliarios. De lo anterior, se solicitará a dicho Subproceso de Ingresos que es el encargado de dichas cuentas el seguimiento del mismo. El cual indica que, en cuanto al criterio emitido por la firma Facio y Cañas que, con oficio 916-TI/UCC-2018 del 02 de octubre de 2018 se hizo del conocimiento de la Dirección Ejecutiva, de lo cual esa Dirección con oficio 4855-DE-2018 del 10 de octubre de 2018, indicó que se debe estar a espera del resultado del Recurso de Apelación contra la resolución N° DGCN-097-2018 de fecha 31 de mayo de 2018, en la cual se denegó la exención del Impuesto sobre la Renta en los rendimientos generados en operaciones de recompras o reportos realizadas por medio de una bolsa de valores y operaciones con fondos de inversión y fondos inmobiliarios.

Sheet Nota 15
B2: Nota 15:
B3: APORTES POR COBRAR
B5: Al 30 de Junio de 2020
B7: Corresponden a los aporte de los trabajadores, del patrono, del estado y jubilados-Pensionados que se detallan a continuación:
H8: Trimestre 2 | K8: Trimestre 1
A9: Cuenta Contable | B9: Nota | D9: Sub-nota | F9: APORTES POR COBRAR | H9: Detalle | J9: Total | K9: Detalle | L9: Total
A11: 150.01.00.00.00 | B11: 15.1 | F11: Aporte por cobrar a los trabajadores | J11: =SUM(H12:H14) -> 4950151624 | L11: =SUM(K12:K14) -> 4210631532
D12: 15.1.1 | F12: Aporte Ordinario | H12: 686175.92 | K12: 145119.06
D13: 15.1.2 | F13: Aporte Ordinario S .Escolar | H13: 1380822610 | K13: 706171792.6
D14: 15.1.3 | F14: Aporte Reconocimiento de tiempo servido | H14: 3568642838 | K14: 3504314620
A15: 150.02.00.00.00 | B15: 15.2 | F15: Aportes por cobrar al Patrono | J15: =SUM(H16:H17) -> 3137009929 | L15: =SUM(K16:K17) -> 3920522876
D16: 15.2.1 | F16: Aportes Por Cobrar Poder Jud.-Patrono | H16: 1611447287 | K16: 3151366540
D17: 15.2.2 | F17: Apor. x Cobrar Poder Jud.-Patrono (S.E) | H17: 1525562642 | K17: 769156335.7
A18: 150.03.00.00.00 | B18: 15.3 | F18: Aportes por cobrar al Estado | J18: =SUM(H19:H20) -> 307553601.8 | L18: =SUM(K19:K20) -> 228492269
D19: 15.3.1 | F19: Aportes Por Cobrar Poder Jud.-Estado | H19: 158070005.2 | K19: 153206549.6
D20: 15.3.2 | F20: Apor. x Cobrar Poder Jud.-Estado (S.E) | H20: 149483596.6 | K20: 75285719.41
A21: 150.04.00.00.00 | B21: 15.4 | F21: Otros aportes por cobrar | J21: =SUM(H22:H25) -> 205282987.7 | L21: =SUM(K22:K25) -> 207840434.6
D22: 15.4.1 | F22: O. Aportes Por Cobrar Jubilados | H22: 177146685.5 | K22: 181138463.9
D23: 15.4.2 | F23: O. Aportes Por Cobrar Pensionados | H23: 26292658.42 | K23: 24765070.33
D24: 15.4.3 | F24: O. Aportes Por Cobrar E. Deductoras | H24: 1843643.76 | K24: 1936900.3
F27: TOTAL | J27: =SUM(J11:J25) -> 8599998142 | L27: =SUM(L11:L25) -> 8567487111
B29: 15.1 Aportes por cobrar a los trabajadores
B30: Este grupo contempla las sumas por cobrar proveniente de la estimación mensual del salario escolar a los servidores activos del Poder Judicial. Adicionalmente, incluye los aportes por cobrar de las obligaciones por reconocimiento de tiempo servido fuera del Poder Judicial aprobado por el Consejo Superior de la Corte Suprema de Justicia, a servidores judiciales activos, para efectos de jubilación.
B32: 15.2 Aportes por cobrar al Patrono
B33: Se compone de las sumas pendientes de cobrar por aportes que recibe el Fondo de Jubilaciones y Pensiones del Estado en su calidad de patrono.
B35: 15.3 Aportes por cobrar al Estado
B36: Este grupo lo componen las sumas pendientes de cobrar por aportes al Estado que recibe el Fondo de Jubilaciones y Pensiones.
B37: 15.4 Otros aportes por cobrar
B38: Sumas canceladas de más a Jubilados y Pensionados
B40: • Por fallecimiento: Dineros girados de más a jubilados y pensionados fallecidos, donde la fecha de su defunción no fue conocida oportunamente. Es importante anotar que en estos casos el Macroproceso Financiero Contable realiza como uno de los mecanismos alternativos para la recuperación de las sumas giradas en demasía, una “Acta de autorización de rebajo”, mediante la cual los beneficiarios al Fondo de Socorro Mutuo designados por el jubilado fallecido, autorizan voluntariamente la deducción de ese beneficio, de las sumas pagadas de más por el Fondo de Jubilaciones. Dicha deducción se realiza solo con el consentimiento de los causahabientes, los cuales acceden a honrar las obligaciones del jubilado fallecido. Para los casos en donde el procedimiento no ha resultado factible, se analiza el caso y se eleva a conocimiento de las instancias correspondientes.
B42: • Estudios por sumas canceladas de más a jubilados y pensionados: Además se registran las sumas canceladas de más por conceptos diversos, entre los cuales los más relevantes son los montos pagados de más a jubilados que en determinado momento ejercieron un puesto en el Sector Público percibiendo otro sueldo del Estado, de sus bancos, de sus instituciones, de las municipalidades, de las juntas de educación y de las empresas de economía mixta, a los cuales se les suspendió el beneficio del Fondo de Jubilaciones tardíamente, girándoseles recursos en demasía que no les correspondía, de conformidad con lo que reza el artículo 234 de la Ley Orgánica del Poder Judicial.
B44: Aportes Reconocimiento de Tiempo Servido
B45: Corresponde a las contribuciones por cobrar, como resultado del reconocimiento de tiempo servido fuera del Poder Judicial aprobado por el Consejo Superior de la Corte Suprema de Justicia, a servidores judiciales activos y jubilados o pensionados que asumen la deuda de un ex jubilado, según el artículo 231 de la Ley Orgánica del Poder Judicial.
B47: Otros aportes por cobrar a Entidades Deductoras
B48: Corresponde a cuentas por cobrar a las entidades deductoras por conceptos diversos entre los cuales los más relevantes son producto de:
B50: · La anulación de pagos por concepto de asignaciones por exclusión de beneficiarios del Fondo (fallecimiento, mayoría de edad, matrimonio o cuando el beneficiario se encuentra laborando para otra Institución del Estado mientras recibía el beneficio de su jubilación por parte de este Fondo)
B52: · Diferencias en la aplicación de ajustes en los montos de las jubilaciones y pensiones que corresponden a deducciones en planilla que ya han sido giradas a dichas Entidades, cuando el Fondo se entera del suceso.
B54: Trimestre 2 | H54: Trimestre 1
B65: Trimestre 1

Sheet Nota 16
B2: Nota 16:
B3: INTANGIBLES
B5: =+'Nota 15'!B5:J5 -> Al 30 de Junio de 2020
B7: Detalle | D7: Monto | F7: Amortización | H7: Total
B8: Sistema inversiones "Internet Systems Development Insyde S.A" | D8: 7618670 | F8: -7618670 | H8: 0
B11: Nota:
B12: Corresponde al registro de la compra del Sistema de Inversiones a la empresa Internet Systems Development Insyde S.A. con un valor de $14,750.00, valorado al tipo de cambio de la fecha de adquisición del activo (15 de agosto de 2007) de ¢516.52, para un total de ¢7,618,670. A dicho monto se descuenta la amortización acumulada al cierre del presente mes que asciende a ¢7,618,670 para un activo neto de ¢0.00. La vida útil del sistema en mención es de 5 años y considerando que fue registrado en setiembre del 2007 se encuentra depreciado en su totalidad, no obstante, a la fecha de este informe se encuentra en funcionamiento. En el periodo comprendido entre el 15 de julio a 12 de diciembre del 2011 la Dirección de Tecnología de Información realizó mejoras al sistema de Inversiones por la suma de ¢1.673.895. Lo anterior, de acuerdo con la información suministrada por la Dirección de Tecnología de la Información, mediante correo electrónico del 27 de abril del 2017 y oficio 1635-DTI-2017, dicho monto se encuentra registrado actualmente en los registros contables del Poder Judicial por igual suma. Con oficio 425-SC-2015 de 26 de agosto del 2015, se realizó la consulta a la Superintendencia de Pensiones (SUPEN) sobre la forma de registro contable de la información suministrada por la Dirección de Tecnología de Información, en virtud de que, en el Manual de Cuentas para el Régimen de Capitalización Colectiva emitido por dicha Superintendencia, no se observa alguna cuenta contable para el registro de la reevaluación de activos intangibles. La SUPEN ante la consulta realizada, indicó lo siguiente: “[…] conforme lo establecido en las Normas internacionales de Información Financiera (NIIF), se le comunica que no existe forma alguna de atribuir costo a un activo intangible luego del final de su vida útil: aunque esté en operación y generando beneficios, su valor en libros deberá seguir siendo cero…”

Sheet Nota 17
C2: Nota 17:
C4: Retenciones A Pensionados
C6: =+'Nota 16'!B5 -> Al 30 de Junio de 2020
C9: Comprende las retenciones mensuales aplicadas en la planilla de jubilados y pensionados judiciales correspondientes a entidades deductoras, que realiza el Fondo a sus distintos beneficiarios, las cuales en el caso de la retención del impuesto sobre la renta y la cuota obrera por enfermedad y maternidad son honradas hasta el mes siguiente de su aplicación.
B12: Cuenta Contable | C12: RETENCIONES A JUBILADOS Y PENSIONADOS | E12: Trimestre 2 | G12: Trimestre 1
B14: 211.01.01.00.00.1.00.01 | C14: Impuesto Sobre La Renta | E14: 598124815 | G14: 608557702.9
B15: 211.01.02.00.00.1.00.01 | C15: Caja Costarricense Seguro Social | E15: 337170213.2 | G15: 341764412.3
B16: 211.01.04.00.00.1.00.01 | C16: Caprede | E16: 118541611.1 | G16: 0
B17: 211.01.04.00.00.1.00.02 | C17: Fondo Socorro Mutuo | E17: 5238750 | G17: 0
B18: 211.01.04.00.00.1.00.03 | C18: Anejud | E18: 5702546.32 | G18: 0
B19: 211.01.04.00.00.1.00.04 | C19: I.N.S. | E19: 1019158.5 | G19: 0
B20: 211.01.04.00.00.1.00.05 | C20: Pensiones Alimentarias | E20: 21472070.72 | G20: 0
B21: 211.01.04.00.00.1.00.06 | C21: Banco Popular | E21: 88221386.15 | G21: 0
B22: 211.01.04.00.00.1.00.08 | C22: Coopeservidores | E22: 32914234 | G22: 0
B23: 211.01.04.00.00.1.00.09 | C23: Cta 20192-8 | E23: 257917.14 | G23: 0
B24: 211.01.04.00.00.1.00.10 | C24: Asojupen | E24: 25476067.66 | G24: 0
B25: 211.01.04.00.00.1.00.11 | C25: CoopeJudicial | E25: 149665032 | G25: 0
B26: 211.01.04.00.00.1.00.12 | C26: Coocique | E26: 3196598 | G26: 0
B27: 211.01.04.00.00.1.00.14 | C27: Servicoop | E27: 2907062.06 | G27: 0
B28: 211.01.04.00.00.1.00.15 | C28: Coopealianza | E28: 52603201.96 | G28: 0
B29: 211.01.04.00.00.1.00.16 | C29: Asosejud | E29: 11198575.34 | G29: 0
B30: 211.01.04.00.00.1.00.17 | C30: Anic | E30: 1034664.79 | G30: 0
B31: 211.01.04.00.00.1.00.18 | C31: Coopenae | E31: 48693898.5 | G31: 0
B32: 211.01.04.00.00.1.00.19 | C32: Coopecaja R.L. | E32: 9333041.16 | G32: 0
B33: 211.01.04.00.00.1.00.20 | C33: Asejuque | E33: 75700 | G33: 0
B34: 211.01.04.00.00.1.00.21 | C34: CoopeSanGabriel | E34: 1693414.45 | G34: 0
B35: 211.01.04.00.00.1.00.22 | C35: Colegio de Abogados de C.R. | E35: 1160700 | G35: 0
B36: 211.01.04.00.00.1.00.23 | C36: CoopeAnde No. 5 | E36: 265477.5 | G36: 0
B37: 211.01.04.00.00.1.00.24 | C37: Coopesparta | E37: 1324339.63 | G37: 0
B38: 211.01.04.00.00.1.00.25 | C38: Asociación Deportiva del Pod | E38: 31000 | G38: 0
B39: 211.01.04.00.00.1.00.26 | C39: COOPEMAPRO R.L | E39: 151825.41 | G39: 0
B40: 211.01.04.00.00.1.00.27 | C40: Coopenacional R.L. | E40: 793913.5 | G40: 0
B41: 211.01.04.00.00.1.00.28 | C41: COOPEAFM RL | E41: 289547.88 | G41: 0
B42: 211.01.04.00.00.1.00.29 | C42: SITRAJUD | E42: 83318.5 | G42: 0
B43: 211.01.04.00.00.1.00.31 | C43: Coope San Ramon R.L | E43: 378450 | G43: 0
B44: 211.01.04.00.00.1.00.32 | C44: COOPEMEP R.L | E44: 5005134.46 | G44: 0
B45: 211.01.04.00.00.1.00.33 | C45: COOPEANDE N° 1 | E45: 6296125 | G45: 0
B46: 211.01.04.00.00.1.00.34 | C46: Coopeservicios R.L. | E46: 1465086.79 | G46: 0
C48: TOTAL DE RETENCIONES A JUBILADOS Y PENSIONADOS | E48: =SUM(E14:E47) -> 1531784877 | G48: =SUM(G14:G47) -> 950322115.2
B50: Los saldos de Junio se presentan por cuanto los documentos bancarios correspondientes no fueron asociados en el presente mes.

Sheet Nota 18
B2: Nota 18:
B3: Obligaciones Por Liquidar Empleados y Exempleados
B5: =+'Nota 17'!C6 -> Al 30 de Junio de 2020
B7: En esta cuenta se registran sumas sujetas a devolución por parte del Fondo de Jubilaciones y Pensiones que corresponden a pagos recibidos de más en la cancelación de obligaciones por cobrar por reconocimiento de tiempo servido fuera del Poder Judicial, derivados por el traslado de cuotas que realiza la Caja Costarricense del Seguro Social u otro régimen de pensiones hacia el Fondo de Jubilaciones, las cuales deben abonarse a las cuentas de los servidores judiciales, sin embargo, algunos de esos traslados ingresan cuando ya el servidor ha cancelado la deuda, por lo que se genera un pasivo a favor de éste.
B9: OBLIGACIONES POR LIQUIDAR EMPL. Y EXEMPL. | C9: Trimestre 2 | D9: Trimestre 1
B11: ONGJ | C11: 3722763.78 | D11: 3722763.78
B12: TGJ | C12: 67742.62 | D12: 0
B13: RVH | C13: 55036.17 | D13: 0
B14: OBLIGACIONES POR LIQUIDAR EMPL. Y EXEMPL. | C14: =SUM(C11:C13) -> 3845542.57 | D14: =SUM(D11:D13) -> 3722763.78
B16: Con respecto al caso de ONGJ, se ha dado el seguimiento respectivo y el Subproceso de Ingresos indicó lo siguiente: registrado en febrero 19 producto de devolución de Traslado de cuotas de la CCSS por RTS, cuya deuda fue reversada porque fue dejada según lo ordenado por Consejo Superiorsesión 14-19 artículo LXIV del 19 de febrero de 2019, sin embargo se debe esperar a que ese Consejo defina a cuanto equivale el monto a deducido por ese concepto y analice informe de Gestión Humana en donde se calcula dicho tiempo. Mediante correo electrónico del 2 de julio de 2019 el Subproceso de Ingresos informa: "Con acuerdo del Consejo Superior de sesión 32-19 artículo XII, del 08 de mayo de 2019, se acordó: ": Solicitar criterio a la Dirección Jurídica, respecto a la procedencia de acreditar los recursos trasladados por la Caja Costarricense de Seguro Social (CCSS) al Fondo de Jubilaciones y Pensiones del Poder Judicial a nombre de los servidores.” De lo anterior, el Subproceso de Ingresos mantuvo una reunión con la Dirección Jurídica el 3 de octubre de 2019 en la cual acordaron que dicha Dirección remitiría el criterio jurídico. Con correo del 13 de abril 2020 el Proceso de Inversiones indica que se le consulto a la Dirección Juridica el pasado 12 de marzo de 2020 sobre este tema indicando que solicitaron una prórroga de dos meses al Consejo Superior.

Sheet Nota 19
B2: Nota 19:
B4: Obligaciones Transitorias por Liquidar
B6: =+'Nota 18'!B5:B5 -> Al 30 de Junio de 2020
B9: En esta se registran sumas transitorias que deben liquidarse oportunamente y se compone de los siguientes rubros:
A11: Cuenta Contable | B11: Obligaciones Transitorias por Liquidar | D11: Trimestre 2 | E11: Trimestre 1
A12: 211.07.01.00.00.1.00.01 | B12: Cuotas para otros regímenes | D12: 0
A13: 211.07.03.00.00.1.00.01 | B13: Benef. no retirados y por fallecimiento | D13: 56698158.61 | E13: 52471381.22
A14: 211.07.03.00.00.1.01.01 | B14: Sumas en transito por aclarar ¢ | D14: 30698110.38 | E14: 371592244.9
A15: 211.07.03.00.00.1.02.04 | B15: Institucione Financieras Banco Popular ¢ | D15: 498197.34 | E15: 498197.34
A16: 211.07.03.00.00.1.03.03 | B16: Instituciones Gubernamentales-Caja Costarricense Seguro Social | D16: 3804819.36 | E16: 3804819.36
A17: 211.07.03.00.00.1.04.01 | B17: Anejud | D17: 148458.06 | E17: 148458.06
A18: 211.07.03.00.00.1.04.03 | B18: Otros-Errores Bancarios | D18: 4610.86 | E18: 4610.86
A19: 211.07.03.00.00.1.05.01 | B19: Transitoria de deducción | D19: 745140.19 | E19: 810169.97
A20: 211.07.03.00.00.1.06.01 | B20: * Aporte Junta Administradora FJP | D20: 2801360405 | E20: 2506997445
A21: 211.07.03.00.00.1.06.02 | B21: * Aporte Junta Administradora FJP - Jubilados y Pensionados | D21: 804083867 | E21: 702399539.1
A22: 211.07.03.00.00.1.07.01 | B22: Intereses ganados en cta cte Junta. Adm | D22: 172272500.9
A23: 211.07.03.00.00.2.00.01 | B23: Sumas en tránsito por aclarar $ | D23: 0 | E23: 0
A24: 211.07.03.00.00.2.01.04 | B24: Instituciones Financieras-Banco Popular $ | D24: 232250.73 | E24: 232250.73
B26: Total Obligaciones Transitorias por Liquidar | D26: =SUM(D12:D24) -> 3870546519 | E26: =SUM(E13:E24) -> 3638959117
B28: * Nota 1: Mediante la publicación de la Ley 9544, se aplica la reforma al capítulo IV, art 239, referente a la comisión por gastos administrativos, la cual indica: " Surgirá de deducir un cinco por mil de los sueldos de que devengen los servidores judicial, así como de las jubilaciones y las pensiones a cargo del Fondo. Con estos recursos se pagarán las dietas de los miembros de la Junta Administradora, los salarios de su personal y, en general, sus gastos administrativos...", dicho aporte dio inicio a partir del 22/05/2018.
B39: Con respecto a las sumas en tránsito por aclarar el monto de ¢2,766,747 más antiguo y se encuentra en análisis por parte del Subproceso de Ingresos, el cual indicó mediante correo electrónico del 9 de setiembre 2019 que la CCSS remitió una serie de informes de inspección y se está en el análisis para identificar los montos si corresponden al FJPPJ, por cuanto informarán cuando culminen. La CCSS el 28-10-2019 según oficio SARCL-691-10-2019 remitió la lista de los informes de inspección relacionados con este rubro, de lo cual con oficio 949-TI-2019 del 04-12-2019, se solicitó a la CCSS los informes faltantes en virtud que los remitidos anteriormente no corresponden. Y el monto de ¢ 18,237.45 corresponde a ingresos mayo 2019.
B41: El monto por pagar a la Caja Costarricense del Seguro Social, obedece a:
B42: o ¢2,890,336 correspondiente a pagos dobles efectuados por dicha entidad producto de informes de inspección por cuotas canceladas de más y devolución de aportes. Lo anterior fue comunicado a la Dirección Ejecutiva mediante oficio 293-SC-2013 del 5 de julio del 2013, siendo que, dicha Dirección informó mediante oficio 5912-DE-2013 que toma nota de lo anterior.
B43: o ¢2,888 por suma pagada de más por la C.C.S.S en el informe de inspección 1238-00249-2012-I, misma que fue informada a la Dirección Ejecutiva mediante oficio 383-SC-2013 del 4 de septiembre del 2013. Siendo que dicha Dirección mediante oficio 1861-DE/AL-2012 del 16 de setiembre del 2013 informa que se toma de lo informado.
B44: o ¢13,749 la cual obedece al caso de la señora MCSV dado que no corresponde la devolución efectuada por la C.C.S.S., en virtud que la Dirección Ejecutiva mediante oficio 555-DE/CA-2012 del 7 de junio del 2013, remitió resolución 3506-2012 del 7 de junio del 2012 en la cual ordena el archivo definitivo de la deuda por no proceder.
B45: o ¢843,454 corresponde a la devolución de cuotas obrero-patronales según resolución emitida por la C.C.S.S, mediante Informe de Inspección de dicha entidad No. 1238-00079-2015-I del 26 de enero de 2015.
B46: o ¢9.022 corresponde a la devolución de cuotas obrero-patronales según resolución emitida por la C.C.S.S, mediante Informe de Inspección de dicha entidad No. 1238-00274-2015-I del 09 de febrero de 2015.
B48: o El monto de ¢ 37,002, el Subproceso de Ingresos indica mediante correo electrónico del 12/08/2019 que se encuentra en proceso de verificar la naturaleza de los recursos, por lo que se encuentra en estudio
B49: o El monto de ¢ 8,368 con oficio SARCL-065-01-2019 la CCSS canceló del informe de inspección 1235-00902-2018-I el monto, sin embargo ya había sido cancelado mediante informe de inspección SARCL-0723-2018.
B50: Disminución cuenta de Aporte de Junta Administradora:
B51: A solicitud de la Junta Administradora del Fondo de Jubilaciones y Pensiones del Poder Judicial a partir de febrero 2020 se realizan traslados de los recursos a la cuenta bancaria de la Junta.
B52: Traslados contabilizados por mes:
B53: Febrero | D53: 3873684
B54: Marzo | D54: 24116334
B55: Abril | D55: 12367176.34
B56: Mayo | D56: 669683.97
B57: Junio | D57: 8121517.99
B58: Total | D58: =SUM(D53:D57) -> 49148396.3

Sheet Nota 20
B2: Nota 20:
B4: Cotización Seguro De Enfermedad y Maternidad
B6: =+'Nota 19'!B6:D6 -> Al 30 de Junio de 2020
B9: Este pasivo se conforma por la cuota patronal del 8.75% que el Fondo de Jubilaciones y Pensiones debe pagar mensualmente a la Caja Costarricense de Seguro Social (C.C.S.S.), según lo estipulado en el artículo 62 del Reglamento del Seguro Salud.
A11: Cuenta Contable | B11: Entidad | D11: Porcentaje | F11: Trimestre 2 | G11: Trimestre 1
A12: 213.03.00.00.00 | B12: Caja Costarricense del Seguro Social | D12: 0.0875 | F12: 590475695.3 | G12: 598213810.9

Sheet Nota 21
B2: Nota 21:
B3: PROVISIONES PARA PENSIONES EN CURSO DE PAGO
B5: =+'Nota 20'!B6:F6 -> Al 30 de Junio de 2020
B7: En esta cuenta se registra la totalidad de los recursos acumulados generados de las actividades del Fondo de Jubilaciones y Pensiones provenientes en su mayoría de los aportes recibidos de las cuotas obrero patronales-estatales, así como de los intereses netos ganados en inversiones, con el fin de atender las obligaciones que se deriven de los beneficios establecidos reglamentariamente para los jubilados y pensionados actuales así como de los nuevos jubilados y pensionados.
A9: Trimestre 2
A10: Cuenta Contable | B10: Nota | D10: Sub-nota | F10: APORTES POR COBRAR | H10: Detalle | J10: Total
A12: 214.01.01.00.00 | B12: 22.1 | F12: Recursos recibido de reservas en formación | J12: 1.242267934e+12
A13: 214.01.02.00.00 | B13: 22.2 | F13: (Menos) Pago plan de beneficios | J13: 6.437752919e+11
A14: 214.01.02.00.00.1.02.01 | D14: 22.2.1 | F14: Traslados a otros regímenes | H14: 1085542002
F16: TOTAL | J16: =+J12-J13 -> 5.98492642e+11
A19: Trimestre 1
A20: Cuenta Contable | B20: Nota | D20: Sub-nota | F20: APORTES POR COBRAR | H20: Detalle | J20: Total
A22: 214.01.01.00.00 | B22: 22.1 | F22: Recursos recibido de reservas en formación | J22: 1.209888034e+12
A23: 214.01.02.00.00 | B23: 22.2 | F23: (Menos) Pago plan de beneficios | J23: 6.234065092e+11
A24: 214.01.02.00.00.1.02.01 | D24: 22.2.1 | F24: Traslados a otros regímenes | H24: 1065736737
F26: TOTAL | J26: =+J22-J23 -> 5.864815247e+11

Sheet Nota 22
B2: Nota 22:
B4: CUENTAS DE ORDEN DEUDORAS Y ACREDORAS
B6: =+'Nota 21'!B5:J5 -> Al 30 de Junio de 2020
B9: En esta cuenta se registran los saldos de las cuentas por cobrar por concepto de reconocimiento de tiempo servido en otras dependencias o instituciones públicas, de aquellos servidores en condición de propietarios que renunciaron al Poder Judicial.
B11: Concepto | D11: Monto
B12: Cuentas por cobrar por reconocimiento de tiempo servido en otras dependencias o instituciones públicas, de aquellos servidores en condición de propietarios que renunciaron al Poder Judicial. | D12: 331222636

Sheet Nota 23
B2: Nota 23:
B4: Rendimientos Acumulados
B6: =+'Nota 21'!B5:J5 -> Al 30 de Junio de 2020
B9: En esta cuenta se registran el traslado de los rendimientos del mes anterior antes del cierre del mes actual.
B11: Trimestre 2
B12: Cuenta Contable | C12: Rendimientos Acumulados | D12: TOTAL
B14: 313.01.00.00.00 | C14: Rendimientos devengados | D14: 1.007260346e+10
B15: 313.02.00.00.00 | C15: (Traslado de recursos a la provisión para pensiones | D15: -1.007260346e+10
B16: Total de Rendimientos Acumulados | D16: =SUM(D14:D15) -> 0
B18: Trimestre 1
B19: Cuenta Contable | C19: Rendimientos Acumulados | D19: TOTAL
B21: 313.01.00.00.00 | C21: Rendimientos devengados | D21: 1.023946686e+10
B22: 313.02.00.00.00 | C22: (Traslado de recursos a la provisión para pensiones | D22: -1.023946686e+10
B23: Total de Rendimientos Acumulados | D23: =SUM(D21:D22) -> 0

Sheet Nota 24
B2: Nota 24:
B4: Resultado del periodo
B6: =+'Nota 21'!B5:J5 -> Al 30 de Junio de 2020
B9: En esta cuenta se registran el resultado del periodo.
B11: Cuenta Contable | C11: Ingresos | D11: Trimestre 2 | E11: Trimestre 1
B12: 500.00.00.00.00 | C12: Ingresos | D12: 1.701548019e+10 | E12: 1.835267571e+10
B13: Total de Ingresos | D13: =SUM(D12:D12) -> 1.701548019e+10 | E13: =SUM(E12) -> 1.835267571e+10
B15: Cuenta Contable | C15: Gastos | D15: Trimestre 2
B16: 400.00.00.00.00 | C16: Gastos | D16: 7635466923 | E16: 8050890171
B17: Total de Gastos | D17: =SUM(D16:D16) -> 7635466923 | E17: =SUM(E16) -> 8050890171
B19: Total Utilidad | D19: =+D13-D17 -> 9380013270 | E19: =+E13-E17 -> 1.030178554e+10
B21: Este monto se traslada con el cierre de periodo a la cuenta de rendimientos acumulados y posteriormente el mes siguientes se traslada a la cuenta de la Provisión.

Sheet Nota 25
B2: Nota 25:
B3: Flujos de efectivo por actividades de operación
B4: Ganancias o pérdidas por diferencias de cambio y unidades de desarrollo
B6: =+'Nota 21'!B5:J5 -> Al 30 de Junio de 2020
B9: Corresponde a la variación de la cuentas de ingresos y gastos de las ganancias o pérdidas por diferencial cambiario y unidades de desarrollo.
B11: Cuenta Contable | C11: Ingresos | D11: Trimestre 2 | E11: Trimestre 1
B12: 510.04.10.00.00 | C12: Ganancia por diferencial cambiario y unidades de desarrollo | D12: 5940954255 | E12: 7088775649
B13: 410.04.10.00.00 | C13: Pérdida por diferencial cambiario y unidades de desarrollo | D13: 5732328145 | E13: 5949779621
B14: Total | D14: =+D12-D13 -> 208626109.7 | E14: =+E12-E13 -> 1138996028

Sheet Nota 26
B2: Nota 26:
B3: Flujos de efectivo por actividades de operación
B4: Deterioro de activos financieros
B6: =+'Nota 7'!B5:E5 -> al 30 de Junio de 2020
B9: Comprende los movimientos de la estimación de deterioro en activos sobre los instrumentos financieros, de cuentas, productos, dividendos y aportes por cobrar.
A12: Cuenta Contable | B12: Cuenta | D12: Moneda | E12: Trimestre 2 | F12: Trimestre 1
A13: 411.01.01.00.00.1.00.01 | B13: Al valor razonable con cambios en otro resultado integral | D13: Colones | E13: 62535846.89 | F13: 162762738.6
A14: 411.01.01.00.00.2.00.01 | B14: Al valor razonable con cambios en otro resultado integral | D14: Dólares | E14: -95739864.27 | F14: 132498558.9
B15: Total | E15: =SUM(E13:E14) -> -33204017.38 | F15: 17779780.52
A17: Cuenta Contable | B17: Cuenta | D17: Moneda | E17: Trimestre 2 | F17: Trimestre 1
A18: 411.01.02.00.00.1.00.01 | B18: Al costo amortizado ¢ | D18: Colones | E18: 75277044.81 | F18: 0
A19: 411.01.02.00.00.2.00.01 | B19: Al costo amortizado $ | D19: Dólares | E19: 20646082.18 | F19: 0
A20: 411.01.02.00.00.4.00.01 | B20: Al costo amortizado (UD) | D20: UDES | E20: 52885403.46 | F20: 0
B21: Total | E21: =SUM(E18:E20) -> 148808530.5

Sheet Nota 27
B2: Nota 27:
B3: Flujos de efectivo por actividades de operación
B4: Instrumentos financieros - Al valor Razonable con cambios en el otro resultado integral
B8: =+'Nota 7'!B5:E5 -> al 30 de Junio de 2020
B11: Comprende los movimientos efectivos correspondientes a las Inversiones al Al valor razonable con cambios en otro resultado integral
B14: Instrumentos financieros - Al valor Razonable con cambios en el otro resultado integral
B15: Instrumentos financieros - Al valor Razonable con cambios en el otro resultado integral | C15: 8783343395
B16: Mas
B17: Gasto por deterioro | C17: 115604513.1
B18: Ajustes al Patrimonio (valuación y deterioro) | C18: 1.267251331e+10
B19: Menos
B20: Diferencial cambiario | C20: -208626109.7
B21: Total | C21: =SUM(C15:C20) -> 2.136283511e+10

Sheet Nota 28
B2: Nota 28:
B3: Flujos de efectivo por actividades de operación
B4: Instrumentos financieros - Al costo amortizado
B8: =+'Nota 7'!B5:E5 -> al 30 de Junio de 2020
B11: Comprende los movimientos efectivos correspondientes a las Inversiones al Instrumentos financieros - Al costo amortizado
A14: Cuenta Contable | B14: Al costo amortizado | C14: Trimestre 2 | D14: Trimestre 1 | E14: Variación (Flujo)
A15: 120.03.00.00.00
B16: Valor de Adquisición | C16: 2.03046084e+11 | D16: 2.193959772e+11 | E16: =+C16-D16 -> -1.634989327e+10
B17: (Amortización de principal) | C17: 0 | D17: 0 | E17: =+C17-D17 -> 0
B18: (Amortización de Primas) | C18: -4262793708 | D18: -4179331364 | E18: -83462343.61
B19: Amortización de Descuentos | C19: 78635687.61 | D19: 72702426.46 | E19: 5933261.15
B20: (Estimación por deterioro) | C20: -148808530.5 | D20: 0 | E20: -148808530.5
B21: Total | C21: =SUM(C16:C20) -> 1.987131174e+11 | D21: =SUM(D16:D20) -> 2.152893483e+11 | E21: =SUM(E16:E20) -> -1.657623088e+10

Sheet Nota 29
B2: Nota 29:
B3: Flujos de efectivo por actividades de operación y de inversión
B4: Productos y dividendos por cobrar
B8: =+'Nota 7'!B5:E5 -> al 30 de Junio de 2020
B11: La cuenta se conforma por el registro de:
B12: · La parte proporcional de los intereses, rendimientos y dividendos por las inversiones, que fueron adquiridas por el Fondo.
B13: · Además comprende los registros de aquellas inversiones que a su fecha de vencimiento deben ser reclasificados según lo requerido por el ente Rector a las cuentas de vencidos y restringidos.
B15: Actividades de Operación
B16: Aumentos | C16: Trimestre 2 | D16: Trimestre 1
B17: Al valor razonable con cambios en otros resultados integral | C17: 1.126850473e+10 | D17: 1.941387481e+10
B18: Al costo amortizado | C18: 2388033347 | D18: 6338822095
C20: =SUM(C17:C19) -> 1.365653808e+10 | D20: 2.57526969e+10
B21: Actividades de Inversión
B22: Disminuciones | C22: Total
B23: Al valor razonable con cambios en otros resultados integral | C23: 7555615245 | D23: 1.522144761e+10
B24: Al costo amortizado | C24: 2225218773 | D24: 4342836151
C26: =+C23+C24 -> 9780834017 | D26: 1.956428376e+10

Sheet Nota 30
B2: Nota 30:
B3: Flujos de efectivo por actividades de operación
B4: Cuentas por cobrar
B8: =+'Nota 7'!B5:E5 -> al 30 de Junio de 2020
B11: Partidas que debe recuperar el Fondo y se conforma por los siguientes conceptos:
B13: Cuentas por Cobrar | C13: Trimestre 2 | D13: Trimestre 1 | E13: Variación (Flujo)
B14: Impuesto Sobre La Renta Por Cobrar | C14: =+'Nota 14'!D10 -> 760764302.2 | D14: =+'Nota 14'!E10 -> 1030539286 | E14: =+C14-D14 -> -269774983.5
B15: Sumas pendientes de cobrar otras | C15: =+'Nota 14'!D11 -> 24222.16 | D15: =+'Nota 14'!E11 -> 441585.41 | E15: =+C15-D15 -> -417363.25
B16: Saldo: | C16: =SUM(C14:C15) -> 760788524.4 | D16: =SUM(D14:D15) -> 1030980871 | E16: =SUM(E14:E15) -> -270192346.8

Sheet Nota 31
B2: Nota 31:
B3: Flujos de efectivo por actividades de operación
B4: Aportes por cobrar
B8: =+'Nota 7'!B5:E5 -> al 30 de Junio de 2020
B12: Corresponden a los aporte de los trabajadores, del patrono, del estado y jubilados-Pensionados que se detallan a continuación:
C13: Trimestre 2 | E13: Trimestre 1 | G13: Variación (Flujo)
A14: Cuenta Contable | B14: APORTES POR COBRAR | C14: Detalle | D14: Total | E14: Detalle | F14: Total
A16: 150.01.00.00.00 | B16: Aporte por cobrar a los trabajadores | D16: =SUM(C17:C19) -> 4950151624 | F16: =SUM(E17:E19) -> 4210631532 | G16: =+D16-F16 -> 739520092.2
B17: Aporte Ordinario | C17: 686175.92 | E17: 145119.06
B18: Aporte Ordinario S .Escolar | C18: 1380822610 | E18: 706171792.6
B19: Aporte Reconocimiento de tiempo servido | C19: 3568642838 | E19: 3504314620
A20: 150.02.00.00.00 | B20: Aportes por cobrar al Patrono | D20: =SUM(C21:C22) -> 3137009929 | F20: =SUM(E21:E22) -> 3920522876 | G20: =+D20-F20 -> -783512946.9
B21: Aportes Por Cobrar Poder Jud.-Patrono | C21: 1611447287 | E21: 3151366540
B22: Apor. x Cobrar Poder Jud.-Patrono (S.E) | C22: 1525562642 | E22: 769156335.7
A23: 150.03.00.00.00 | B23: Aportes por cobrar al Estado | D23: =SUM(C24:C25) -> 307553601.8 | F23: =SUM(E24:E25) -> 228492269 | G23: =+D23-F23 -> 79061332.71
B24: Aportes Por Cobrar Poder Jud.-Estado | C24: 158070005.2 | E24: 153206549.6
B25: Apor. x Cobrar Poder Jud.-Estado (S.E) | C25: 149483596.6 | E25: 75285719.41
A26: 150.04.00.00.00 | B26: Otros aportes por cobrar | D26: =SUM(C27:C30) -> 205282987.7 | F26: =SUM(E27:E30) -> 207840434.6 | G26: =+D26-F26 -> -2557446.91
B27: O. Aportes Por Cobrar Jubilados | C27: 177146685.5 | E27: 181138463.9
B28: O. Aportes Por Cobrar Pensionados | C28: 26292658.42 | E28: 24765070.33
B29: O. Aportes Por Cobrar E. Deductoras | C29: 1843643.76 | E29: 1936900.3
B32: TOTAL | D32: =SUM(D16:D30) -> 8599998142 | F32: =SUM(F16:F30) -> 8567487111 | G32: =SUM(G16:G30) -> 32511031.01

Sheet Nota 32
B2: Nota 32:
B3: Flujos de efectivo por actividades de operación
B4: Cuentas por pagar
B8: =+'Nota 7'!B5:E5 -> al 30 de Junio de 2020
B11: Partidas correspondientes a las cuentas por pagar por los siguientes conceptos:
B13: Cuentas por Cobrar | C13: Trimestre 2 | D13: Trimestre 1 | E13: Variación (Flujo)
B15: Retenciones a Pensionados | C15: =+'Nota 17'!E48 -> 1531784877 | D15: =+'Nota 17'!G48 -> 950322115.2 | E15: =+C15-D15 -> 581462761.5
B16: Obligaciones por liquidar empleados y exempleados | C16: =+'Nota 18'!C14 -> 3845542.57 | D16: =+'Nota 18'!D14 -> 3722763.78 | E16: =+C16-D16 -> 122778.79
B17: Obligaciones transitorias por liquidar | C17: =+'Nota 19'!D26 -> 3870546519 | D17: =+'Nota 19'!E26 -> 3638959117 | E17: 231587402.2
B19: Saldo: | C19: =SUM(C15:C18) -> 5406176938 | D19: =SUM(D15:D18) -> 4593003996 | E19: =SUM(E15:E18) -> 813172942.5

Sheet Nota 33
B2: Nota 33:
B3: Flujos de efectivo por actividades de operación
B4: Provisión para pensiones en curso de pago
B8: =+'Nota 7'!B5:E5 -> al 30 de Junio de 2020
B10: Recursos acumulados generados de las actividades del Fondo de Jubilaciones y Pensiones provenientes en su mayoría de los aportes recibidos de las cuotas obrero patronales-estatales, así como de los intereses netos ganados en inversiones, con el fin de atender las obligaciones que se deriven de los beneficios establecidos reglamentariamente para los jubilados y pensionados actuales así como de los nuevos jubilados y pensionados.
B13: Provisión para pensiones en curso de pago
B15: Provisión para pensiones en curso de pago | C15: 1.201111727e+10
B16: Menos
B17: Rendimientos acumulados | C17: -1.007260346e+10
B18: Total | C18: =SUM(C15:C17) -> 1938513808

Sheet Nota 34
B2: Nota 34:
B3: Flujos de efectivo por actividades de operación
B4: Otros Pasivos
B8: =+'Nota 7'!B5:E5 -> al 30 de Junio de 2020
B11: Lo correspondiente a cuota patronal del 8.75% que el Fondo de Jubilaciones y Pensiones debe pagar mensualmente a la Caja Costarricense de Seguro Social (C.C.S.S.).
B13: Entidad | C13: Trimestre 2 | D13: Trimestre 1 | E13: Variación (Flujo)
B14: Caja Costarricense del Seguro Social | C14: =+'Nota 20'!F12 -> 590475695.3 | D14: =+'Nota 20'!G12 -> 598213810.9 | E14: =+C14-D14 -> -7738115.63
B15: Total | C15: =SUM(C14) -> 590475695.3 | D15: =SUM(D14) -> 598213810.9 | E15: =SUM(E14) -> -7738115.63

Sheet Nota 35
B2: Nota 35:
B3: Flujos de efectivo por actividades de inversión
B4: Aportaciones recibidas - Reservas en formación
B8: =+'Nota 7'!B5:E5 -> al 30 de Junio de 2020
B11: Este rubro corresponde a la Contribución Solidaria
B13: Entidad | C13: Trimestre 2 | D13: Trimestre 1 | E13: Variación
B14: Contribución Solidaria | C14: 1980175693 | D14: 1646634024 | E14: =+C14-D14 -> 333541669.5
B15: Total | C15: =SUM(C14) -> 1980175693 | D15: =SUM(D14) -> 1646634024 | E15: =SUM(E14) -> 333541669.5

Sheet Nota 36
B2: Nota 36:
B3: Estado de Cambios en el Patrimonio Neto
B4: Ajuste por valuación de instrumentos financieros al valor razonable con cambios en el ORI
B8: =+'Nota 7'!B5:E5 -> al 30 de Junio de 2020
B11: Corresponde a la Valuación de precios de mercado correspondiente a las inversiones del valor razonzable con cambios en el ORI
B13: Entidad | C13: Trimestre 2 | D13: Trimestre 1 | E13: Variación
B14: Valuación de instrumentos financieros | C14: 8006590997 | D14: 2.06791043e+10 | E14: =+C14-D14 -> -1.267251331e+10
B15: Total | C15: =SUM(C14) -> 8006590997 | D15: =SUM(D14) -> 2.06791043e+10 | E15: =SUM(E14) -> -1.267251331e+10
